Department,Entity,Pay Date,Product Family,Expense Area,Supplier Name,Transaction Number,Net Amount
BEIS,UKAEA,11/11/2020,Facilities,Fusion,OCS Group UK Ltd,5084315,"-12,228.16"
BEIS,UKAEA,11/11/2020,Facilities,Property,OCS Group UK Ltd,5084315,"-10,869.48"
BEIS,UKAEA,11/11/2020,Facilities,Property,OCS Group UK Ltd,5084315,"-4,076.05"
BEIS,UKAEA,11/11/2020,Facilities,Fusion,OCS Group UK Ltd,5084377,"2,157.43"
BEIS,UKAEA,11/11/2020,Facilities,Property,OCS Group UK Ltd,5084378,"7,583.11"
BEIS,UKAEA,04/11/2020,Professional Services,Fusion,Atkins Ltd,5084464,"6,686.24"
BEIS,UKAEA,06/11/2020,Construction,Property,PMS Oxford Construction Services,5084531,"-2,253.33"
BEIS,UKAEA,04/11/2020,Professional Services,Property,Ridge And Partners Llp,5084560,"6,169.75"
BEIS,UKAEA,04/11/2020,Professional Services,Property,CBG Consultants Ltd.,5084561,924.60
BEIS,UKAEA,04/11/2020,Professional Services,Property,Ridge And Partners Llp,5084562,"7,000.00"
BEIS,UKAEA,04/11/2020,Professional Services,Property,Ridge And Partners Llp,5084563,"3,900.00"
BEIS,UKAEA,06/11/2020,Hired Agency Staff - Rullion CMF/PO,Fusion,Rullion Engineering Ltd,5084565,"7,846.35"
BEIS,UKAEA,04/11/2020,Engineering Goods,Fusion,Sundry Supplier,5084566,"2,473.54"
BEIS,UKAEA,04/11/2020,Office Solutions,Fusion,Freight Merchandising Services,5084574,860.00
BEIS,UKAEA,04/11/2020,Professional Services,Support Services,Harper Macleod LLP,5084575,"14,486.00"
BEIS,UKAEA,04/11/2020,Operational Goods,Fusion,Arco Ltd,5084581,637.20
BEIS,UKAEA,04/11/2020,Learning and Development,Fusion,Sundry Supplier,5084583,"2,430.00"
BEIS,UKAEA,04/11/2020,Engineering Goods,Fusion,Edmundson Electricals Ltd,5084591,"2,004.57"
BEIS,UKAEA,04/11/2020,Engineering Goods,Other,Manutan UK Limited,5084593,973.00
BEIS,UKAEA,04/11/2020,Office Solutions,Fusion,The Royal Society,5084595,"1,700.00"
BEIS,UKAEA,04/11/2020,Professional Services,Fusion,JA Kemp,5084602,"1,000.00"
BEIS,UKAEA,04/11/2020,Professional Services,Fusion,JA Kemp,5084603,"2,404.00"
BEIS,UKAEA,04/11/2020,Professional Services,Support Services,BDO LLP,5084608,535.00
BEIS,UKAEA,06/11/2020,Construction,Fusion,PMS Oxford Construction Services,5084612,"20,355.71"
BEIS,UKAEA,04/11/2020,Engineering Goods,Other,Socomec U.K. Limited,5084614,"1,126.88"
BEIS,UKAEA,04/11/2020,Engineering Goods,Fusion,Underwoods Electrical Distributors,5084615,"1,652.00"
BEIS,UKAEA,06/11/2020,Hired Agency Staff - Rullion CMF/PO,Fusion,Rullion Engineering Ltd,5084618,"3,557.58"
BEIS,UKAEA,06/11/2020,Hired Agency Staff - Rullion Technical CMF/PO,Fusion,Rullion Engineering Ltd,5084619,"3,233.56"
BEIS,UKAEA,04/11/2020,Engineering Goods,Fusion,RS Components Ltd,5084621,"4,237.00"
BEIS,UKAEA,04/11/2020,Professional Services,Fusion,Assystem UK Limited,5084622,"21,295.00"
BEIS,UKAEA,05/11/2020,Professional Services,Fusion,Trasys International G E I E,5084625,"8,452.50"
BEIS,UKAEA,04/11/2020,Professional Services,Fusion,Pelican Software Ltd,5084627,"5,994.00"
BEIS,UKAEA,06/11/2020,Hired Agency Staff - Rullion CMF/PO,Fusion,Rullion Engineering Ltd,5084628,"6,917.08"
BEIS,UKAEA,06/11/2020,Hired Agency Staff - Rullion CMF/PO,Fusion,Rullion Engineering Ltd,5084629,"2,393.16"
BEIS,UKAEA,04/11/2020,Professional Services,Fusion,Bilfinger UK,5084631,"1,945.00"
BEIS,UKAEA,04/11/2020,Professional Services,Fusion,Bilfinger UK,5084631,"1,945.00"
BEIS,UKAEA,04/11/2020,Professional Services,Fusion,Bilfinger UK,5084631,"9,226.61"
BEIS,UKAEA,04/11/2020,Professional Services,Fusion,Bilfinger UK,5084631,"9,226.61"
BEIS,UKAEA,06/11/2020,Hired Agency Staff - Rullion CMF/PO,Fusion,Rullion Engineering Ltd,5084633,"2,100.00"
BEIS,UKAEA,04/11/2020,Professional Services,Property,Ridge And Partners Llp,5084635,"14,500.00"
BEIS,UKAEA,06/11/2020,Hired Agency Staff - Rullion Technical CMF/PO,Fusion,Rullion Engineering Ltd,5084636,"1,301.41"
BEIS,UKAEA,06/11/2020,Hired Agency Staff - Rullion Technical CMF/PO,Fusion,Rullion Engineering Ltd,5084637,"2,928.17"
BEIS,UKAEA,06/11/2020,Hired Agency Staff - Rullion Technical CMF/PO,Fusion,Rullion Engineering Ltd,5084641,"1,526.00"
BEIS,UKAEA,04/11/2020,Facilities,Fusion,HPC Engineering Plc,5084642,"2,028.92"
BEIS,UKAEA,04/11/2020,Facilities,Fusion,HPC Engineering Plc,5084643,803.58
BEIS,UKAEA,04/11/2020,Facilities,Fusion,HPC Engineering Plc,5084644,687.50
BEIS,UKAEA,04/11/2020,Engineering Goods,Other,Rittal Limited,5084645,"12,255.20"
BEIS,UKAEA,04/11/2020,Professional Services,Fusion,Atkins Ltd,5084646,"22,885.75"
BEIS,UKAEA,06/11/2020,Hired Agency Staff - Rullion CMF/PO,Support Services,Rullion Engineering Ltd,5084649,"5,586.00"
BEIS,UKAEA,06/11/2020,Hired Agency Staff - Rullion CMF/PO,Fusion,Rullion Engineering Ltd,5084654,"7,312.53"
BEIS,UKAEA,06/11/2020,Hired Agency Staff - Rullion CMF/PO,Fusion,Rullion Engineering Ltd,5084655,"1,214.25"
BEIS,UKAEA,04/11/2020,Engineering Goods,Other,Shimadzu UK Ltd,5084662,"1,268.99"
BEIS,UKAEA,06/11/2020,Hired Agency Staff - Rullion CMF/PO,Other,Rullion Engineering Ltd,5084664,"11,667.43"
BEIS,UKAEA,06/11/2020,Hired Agency Staff - Rullion CMF/PO,Support Services,Rullion Engineering Ltd,5084666,"2,979.00"
BEIS,UKAEA,06/11/2020,Hired Agency Staff - Rullion CMF/PO,Support Services,Rullion Engineering Ltd,5084668,"10,119.00"
BEIS,UKAEA,06/11/2020,Hired Agency Staff - Rullion CMF/PO,Fusion,Rullion Engineering Ltd,5084669,"8,569.10"
BEIS,UKAEA,06/11/2020,Hired Agency Staff - Rullion CMF/PO,Support Services,Rullion Engineering Ltd,5084673,"4,253.25"
BEIS,UKAEA,04/11/2020,Facilities,Fusion,Securitas Security Services,5084675,"1,377.60"
BEIS,UKAEA,04/11/2020,Facilities,Other,Securitas Security Services,5084675,"1,377.60"
BEIS,UKAEA,04/11/2020,Facilities,Property,Baxter Storey Ltd.,5084676,"2,131.81"
BEIS,UKAEA,04/11/2020,Facilities,Property,Baxter Storey Ltd.,5084677,"3,595.20"
BEIS,UKAEA,04/11/2020,Professional Services,Fusion,UKAS Laboratory Accreditation Service,5084678,"1,183.75"
BEIS,UKAEA,04/11/2020,Engineering Goods,Fusion,Pfeiffer Vacuum UK,5084695,"5,081.70"
BEIS,UKAEA,04/11/2020,Waste Management,Fusion,New Pig Ltd,5084698,880.41
BEIS,UKAEA,06/11/2020,Hired Agency Staff - Rullion CMF/PO,Fusion,Rullion Engineering Ltd,5084700,"4,772.48"
BEIS,UKAEA,06/11/2020,Hired Agency Staff - Rullion CMF/PO,Fusion,Rullion Engineering Ltd,5084702,"2,805.54"
BEIS,UKAEA,06/11/2020,Hired Agency Staff - Rullion CMF/PO,Fusion,Rullion Engineering Ltd,5084703,"2,249.48"
BEIS,UKAEA,06/11/2020,Hired Agency Staff - Rullion CMF/PO,Support Services,Rullion Engineering Ltd,5084704,"8,092.52"
BEIS,UKAEA,06/11/2020,Hired Agency Staff - Rullion CMF/PO,Fusion,Rullion Engineering Ltd,5084705,"6,823.82"
BEIS,UKAEA,06/11/2020,Hired Agency Staff - Rullion CMF/PO,Fusion,Rullion Engineering Ltd,5084706,"1,596.00"
BEIS,UKAEA,06/11/2020,Hired Agency Staff - Rullion CMF/PO,Fusion,Rullion Engineering Ltd,5084708,"8,747.20"
BEIS,UKAEA,06/11/2020,Hired Agency Staff - Rullion CMF/PO,Fusion,Rullion Engineering Ltd,5084709,"5,652.00"
BEIS,UKAEA,06/11/2020,Hired Agency Staff - Rullion Technical CMF/PO,Fusion,Rullion Engineering Ltd,5084710,"2,306.16"
BEIS,UKAEA,06/11/2020,Hired Agency Staff - Rullion Technical CMF/PO,Fusion,Rullion Engineering Ltd,5084711,"2,523.66"
BEIS,UKAEA,06/11/2020,Hired Agency Staff - Rullion CMF/PO,Fusion,Rullion Engineering Ltd,5084712,"5,622.77"
BEIS,UKAEA,06/11/2020,Hired Agency Staff - Rullion CMF/PO,Fusion,Rullion Engineering Ltd,5084713,"4,760.44"
BEIS,UKAEA,06/11/2020,Hired Agency Staff - Rullion Technical CMF/PO,Fusion,Rullion Engineering Ltd,5084714,"2,987.68"
BEIS,UKAEA,06/11/2020,Hired Agency Staff - Rullion CMF/PO,Fusion,Rullion Engineering Ltd,5084715,"3,267.96"
BEIS,UKAEA,06/11/2020,Hired Agency Staff - Rullion CMF/PO,Property,Rullion Engineering Ltd,5084716,"4,062.39"
BEIS,UKAEA,06/11/2020,Hired Agency Staff - Rullion CMF/PO,Fusion,Rullion Engineering Ltd,5084717,"7,500.00"
BEIS,UKAEA,06/11/2020,Hired Agency Staff - Rullion CMF/PO,Fusion,Rullion Engineering Ltd,5084718,"4,505.94"
BEIS,UKAEA,06/11/2020,Hired Agency Staff - Rullion Technical CMF/PO,Fusion,Rullion Engineering Ltd,5084719,"1,471.28"
BEIS,UKAEA,06/11/2020,Hired Agency Staff - Rullion Technical CMF/PO,Fusion,Rullion Engineering Ltd,5084720,"1,407.47"
BEIS,UKAEA,06/11/2020,Hired Agency Staff - Rullion CMF/PO,Fusion,Rullion Engineering Ltd,5084721,"5,253.00"
BEIS,UKAEA,06/11/2020,Hired Agency Staff - Rullion Technical CMF/PO,Fusion,Rullion Engineering Ltd,5084722,"2,302.39"
BEIS,UKAEA,06/11/2020,Engineering Goods,Fusion,BOC Ltd,5084723,"1,033.61"
BEIS,UKAEA,06/11/2020,Hired Agency Staff - Rullion CMF/PO,Fusion,Rullion Engineering Ltd,5084724,"7,060.95"
BEIS,UKAEA,06/11/2020,Hired Agency Staff - Rullion CMF/PO,Fusion,Rullion Engineering Ltd,5084725,"3,025.52"
BEIS,UKAEA,04/11/2020,Facilities,Property,Bidwells LLP,5084726,669.78
BEIS,UKAEA,06/11/2020,Hired Agency Staff - Rullion CMF/PO,Fusion,Rullion Engineering Ltd,5084727,"4,752.66"
BEIS,UKAEA,06/11/2020,Hired Agency Staff - Rullion CMF/PO,Other,Rullion Engineering Ltd,5084728,"4,345.57"
BEIS,UKAEA,06/11/2020,Hired Agency Staff - Rullion CMF/PO,Property,Rullion Engineering Ltd,5084729,"3,441.07"
BEIS,UKAEA,06/11/2020,Hired Agency Staff - Rullion CMF/PO,Fusion,Rullion Engineering Ltd,5084730,"7,555.52"
BEIS,UKAEA,06/11/2020,Hired Agency Staff - Rullion CMF/PO,Fusion,Rullion Engineering Ltd,5084731,"5,190.00"
BEIS,UKAEA,06/11/2020,Hired Agency Staff - Rullion CMF/PO,Other,Rullion Engineering Ltd,5084732,"4,595.65"
BEIS,UKAEA,06/11/2020,Hired Agency Staff - Rullion CMF/PO,Support Services,Rullion Engineering Ltd,5084733,"10,193.73"
BEIS,UKAEA,06/11/2020,Hired Agency Staff - Rullion CMF/PO,Fusion,Rullion Engineering Ltd,5084734,"2,514.96"
BEIS,UKAEA,04/11/2020,Engineering Goods,Fusion,Mini-Circuits Europe,5084735,518.80
BEIS,UKAEA,06/11/2020,Hired Agency Staff - Rullion CMF/PO,Fusion,Rullion Engineering Ltd,5084736,"3,294.76"
BEIS,UKAEA,06/11/2020,Hired Agency Staff - Rullion CMF/PO,Fusion,Rullion Engineering Ltd,5084737,"1,312.50"
BEIS,UKAEA,06/11/2020,Hired Agency Staff - Rullion CMF/PO,Fusion,Rullion Engineering Ltd,5084738,"6,839.43"
BEIS,UKAEA,06/11/2020,Hired Agency Staff - Rullion CMF/PO,Support Services,Rullion Engineering Ltd,5084740,"8,104.89"
BEIS,UKAEA,06/11/2020,Hired Agency Staff - Rullion CMF/PO,Other,Rullion Engineering Ltd,5084741,"4,995.00"
BEIS,UKAEA,06/11/2020,Hired Agency Staff - Rullion CMF/PO,Other,Rullion Engineering Ltd,5084742,"7,887.00"
BEIS,UKAEA,06/11/2020,Hired Agency Staff - Rullion CMF/PO,Fusion,Rullion Engineering Ltd,5084743,"5,343.00"
BEIS,UKAEA,06/11/2020,Hired Agency Staff - Rullion CMF/PO,Fusion,Rullion Engineering Ltd,5084744,"2,131.54"
BEIS,UKAEA,04/11/2020,Engineering Goods,Fusion,RS Components Ltd,5084745,"1,200.51"
BEIS,UKAEA,06/11/2020,Hired Agency Staff - Rullion CMF/PO,Other,Rullion Engineering Ltd,5084746,"7,479.00"
BEIS,UKAEA,06/11/2020,Hired Agency Staff - Rullion CMF/PO,Support Services,Rullion Engineering Ltd,5084748,"8,092.52"
BEIS,UKAEA,06/11/2020,Hired Agency Staff - Rullion CMF/PO,Fusion,Rullion Engineering Ltd,5084751,"3,006.47"
BEIS,UKAEA,06/11/2020,Construction,Fusion,H & H Scaffolding Ltd,5084755,"5,544.00"
BEIS,UKAEA,06/11/2020,Hired Agency Staff - Rullion Technical CMF/PO,Fusion,Rullion Engineering Ltd,5084757,"1,098.10"
BEIS,UKAEA,04/11/2020,Personnel Related,Support Services,Korn Ferry Hay Group Limited,5084759,"9,950.00"
BEIS,UKAEA,06/11/2020,Personnel Related,Fusion,Rullion Engineering Ltd,5084760,"10,250.00"
BEIS,UKAEA,04/11/2020,Professional Services,Other,Aquila Nuclear Engineering Ltd,5084761,"26,130.24"
BEIS,UKAEA,04/11/2020,Engineering Goods,Fusion,Allectra Ltd,5084762,573.00
BEIS,UKAEA,06/11/2020,Hired Agency Staff - Rullion CMF/PO,Fusion,Rullion Engineering Ltd,5084763,"12,771.14"
BEIS,UKAEA,06/11/2020,Hired Agency Staff - Rullion CMF/PO,Support Services,Rullion Engineering Ltd,5084764,"6,566.64"
BEIS,UKAEA,06/11/2020,Professional Services,Fusion,Cavendish Nuclear Ltd,5084765,"1,187.95"
BEIS,UKAEA,06/11/2020,Professional Services,Fusion,Cavendish Nuclear Ltd,5084765,"3,992.00"
BEIS,UKAEA,06/11/2020,Hired Agency Staff - Rullion CMF/PO,Fusion,Rullion Engineering Ltd,5084766,"11,160.63"
BEIS,UKAEA,04/11/2020,Engineering Goods,Other,James Fisher Nuclear Limited,5084767,"397,928.72"
BEIS,UKAEA,06/11/2020,Hired Agency Staff - Rullion CMF/PO,Support Services,Rullion Engineering Ltd,5084768,"9,432.33"
BEIS,UKAEA,06/11/2020,Hired Agency Staff - Rullion CMF/PO,Support Services,Rullion Engineering Ltd,5084770,"16,919.88"
BEIS,UKAEA,04/11/2020,Energy and Fuels,Fusion,National Grid Plc,5084771,"4,020.21"
BEIS,UKAEA,06/11/2020,Hired Agency Staff - Rullion Technical CMF/PO,Fusion,Rullion Engineering Ltd,5084772,"1,481.05"
BEIS,UKAEA,06/11/2020,Hired Agency Staff - Rullion Technical CMF/PO,Fusion,Rullion Engineering Ltd,5084773,988.48
BEIS,UKAEA,06/11/2020,Hired Agency Staff - Rullion Technical CMF/PO,Fusion,Rullion Engineering Ltd,5084774,"1,203.10"
BEIS,UKAEA,06/11/2020,Hired Agency Staff - Rullion Technical CMF/PO,Fusion,Rullion Engineering Ltd,5084775,"1,005.11"
BEIS,UKAEA,06/11/2020,Hired Agency Staff - Rullion Technical CMF/PO,Fusion,Rullion Engineering Ltd,5084776,553.95
BEIS,UKAEA,06/11/2020,Hired Agency Staff - Rullion Technical CMF/PO,Fusion,Rullion Engineering Ltd,5084777,"1,974.44"
BEIS,UKAEA,06/11/2020,Hired Agency Staff - Rullion Technical CMF/PO,Fusion,Rullion Engineering Ltd,5084778,938.78
BEIS,UKAEA,06/11/2020,Hired Agency Staff - Rullion Technical CMF/PO,Fusion,Rullion Engineering Ltd,5084779,"1,451.33"
BEIS,UKAEA,04/11/2020,Professional Services,Property,CBG Consultants Ltd.,5084780,"2,187.40"
BEIS,UKAEA,04/11/2020,Professional Services,Property,Carter Jonas LLP,5084781,"10,693.50"
BEIS,UKAEA,04/11/2020,Professional Services,Property,BSP Consulting,5084782,"7,510.00"
BEIS,UKAEA,04/11/2020,Professional Services,Other,Ridge And Partners Llp,5084783,"2,993.16"
BEIS,UKAEA,06/11/2020,ICT,Other,The French Association for Standardisation (AFNOR),5084784,"1,290.09"
BEIS,UKAEA,04/11/2020,Facilities,Fusion,HPC Engineering Plc,5084786,"1,586.00"
BEIS,UKAEA,04/11/2020,Facilities,Fusion,HPC Engineering Plc,5084789,826.10
BEIS,UKAEA,06/11/2020,Hired Agency Staff - Rullion CMF/PO,Other,Rullion Engineering Ltd,5084790,"3,438.78"
BEIS,UKAEA,06/11/2020,Hired Agency Staff - Rullion Technical CMF/PO,Fusion,Rullion Engineering Ltd,5084791,"3,399.55"
BEIS,UKAEA,06/11/2020,Hired Agency Staff - Rullion CMF/PO,Support Services,Rullion Engineering Ltd,5084792,"8,025.00"
BEIS,UKAEA,06/11/2020,Facilities,Property,SPIE Limited,5084810,"2,987.60"
BEIS,UKAEA,06/11/2020,Facilities,Property,SPIE Limited,5084810,"16,014.16"
BEIS,UKAEA,06/11/2020,Facilities,Fusion,SPIE Limited,5084810,"26,138.56"
BEIS,UKAEA,06/11/2020,Facilities,Property,SPIE Limited,5084811,"4,442.32"
BEIS,UKAEA,06/11/2020,Facilities,Property,SPIE Limited,5084811,"17,481.36"
BEIS,UKAEA,06/11/2020,Facilities,Property,SPIE Limited,5084811,"57,808.46"
BEIS,UKAEA,06/11/2020,Facilities,Fusion,SPIE Limited,5084811,"69,089.90"
BEIS,UKAEA,06/11/2020,Hired Agency Staff - Rullion CMF/PO,Fusion,Rullion Engineering Ltd,5084813,576.68
BEIS,UKAEA,04/11/2020,Engineering Goods,Fusion,Industrial Electronic Wiring Ltd,5084814,"4,544.66"
BEIS,UKAEA,06/11/2020,Engineering Goods,Fusion,BOC Ltd,5084815,583.90
BEIS,UKAEA,04/11/2020,Engineering Goods,Fusion,Island Optics Ltd,5084816,"2,560.00"
BEIS,UKAEA,04/11/2020,Engineering Goods,Fusion,Island Optics Ltd,5084816,"2,560.00"
BEIS,UKAEA,06/11/2020,Facilities,Property,SPIE Limited,5084817,"1,164.80"
BEIS,UKAEA,04/11/2020,Engineering Goods,Fusion,Omniflex UK Ltd,5084818,"1,133.00"
BEIS,UKAEA,06/11/2020,Hired Agency Staff - Rullion CMF/PO,Support Services,Rullion Engineering Ltd,5084819,"8,034.00"
BEIS,UKAEA,06/11/2020,Engineering Goods,Fusion,BOC Ltd,5084821,615.20
BEIS,UKAEA,06/11/2020,Professional Services,Fusion,Jacobs Field Services Ltd,5084822,"66,080.00"
BEIS,UKAEA,04/11/2020,Engineering Goods,Fusion,Crowcon Detection Instruments Ltd,5084824,"1,502.00"
BEIS,UKAEA,06/11/2020,Hired Agency Staff - Rullion CMF/PO,Other,Rullion Engineering Ltd,5084826,"10,437.84"
BEIS,UKAEA,06/11/2020,Hired Agency Staff - Rullion CMF/PO,Fusion,Rullion Engineering Ltd,5084827,"5,253.95"
BEIS,UKAEA,04/11/2020,Engineering Goods,Fusion,Fastfix Bristol Ltd,5084829,893.00
BEIS,UKAEA,04/11/2020,Professional Services,Fusion,SA Group Ltd,5084830,"17,482.50"
BEIS,UKAEA,04/11/2020,Engineering Goods,Fusion,Concurrent Design Group,5084834,650.00
BEIS,UKAEA,04/11/2020,Learning and Development,Support Services,Manufacturing Technology Centre,5084838,"1,300.00"
BEIS,UKAEA,06/11/2020,Hired Agency Staff - Rullion CMF/PO,Fusion,Rullion Engineering Ltd,5084840,"6,952.50"
BEIS,UKAEA,06/11/2020,Hired Agency Staff - Rullion CMF/PO,Fusion,Rullion Engineering Ltd,5084842,"5,719.30"
BEIS,UKAEA,04/11/2020,Professional Services,Fusion,SA Group Ltd,5084843,"1,501.67"
BEIS,UKAEA,04/11/2020,Professional Services,Fusion,SA Group Ltd,5084843,"4,505.01"
BEIS,UKAEA,04/11/2020,Professional Services,Fusion,SA Group Ltd,5084843,"9,010.02"
BEIS,UKAEA,06/11/2020,Hired Agency Staff - Rullion CMF/PO,Fusion,Rullion Engineering Ltd,5084844,703.13
BEIS,UKAEA,06/11/2020,Hired Agency Staff - Rullion CMF/PO,Support Services,Rullion Engineering Ltd,5084845,"8,259.62"
BEIS,UKAEA,06/11/2020,Hired Agency Staff - Rullion CMF/PO,Support Services,Rullion Engineering Ltd,5084847,"8,180.27"
BEIS,UKAEA,06/11/2020,Hired Agency Staff - Rullion CMF/PO,Support Services,Rullion Engineering Ltd,5084848,"1,922.40"
BEIS,UKAEA,04/11/2020,Engineering Goods,Support Services,Sodi-Tech EDM,5084851,569.00
BEIS,UKAEA,06/11/2020,Hired Agency Staff - Rullion CMF/PO,Support Services,Rullion Engineering Ltd,5084856,"10,717.61"
BEIS,UKAEA,06/11/2020,Hired Agency Staff - Rullion CMF/PO,Other,Rullion Engineering Ltd,5084857,"5,833.54"
BEIS,UKAEA,06/11/2020,Hired Agency Staff - Rullion CMF/PO,Fusion,Rullion Engineering Ltd,5084858,"4,503.00"
BEIS,UKAEA,06/11/2020,Hired Agency Staff - Rullion CMF/PO,Fusion,Rullion Engineering Ltd,5084861,"7,407.75"
BEIS,UKAEA,06/11/2020,Hired Agency Staff - Rullion CMF/PO,Support Services,Rullion Engineering Ltd,5084865,"7,642.51"
BEIS,UKAEA,04/11/2020,Engineering Goods,Other,Manufax Engineering Limited,5084867,"2,382.00"
BEIS,UKAEA,04/11/2020,Professional Services,Other,Manufax Engineering Limited,5084868,"17,870.36"
BEIS,UKAEA,04/11/2020,Professional Services,Other,Manufax Engineering Limited,5084869,"13,530.00"
BEIS,UKAEA,04/11/2020,Professional Services,Other,Manufax Engineering Limited,5084870,"3,000.00"
BEIS,UKAEA,06/11/2020,Hired Agency Staff - Rullion Technical CMF/PO,Fusion,Rullion Engineering Ltd,5084874,"1,691.64"
BEIS,UKAEA,04/11/2020,Professional Services,Other,Glanville Consultants,5084880,"5,356.55"
BEIS,UKAEA,06/11/2020,Hired Agency Staff - Rullion CMF/PO,Fusion,Rullion Engineering Ltd,5084881,774.38
BEIS,UKAEA,06/11/2020,Hired Agency Staff - Rullion CMF/PO,Fusion,Rullion Engineering Ltd,5084882,"2,307.00"
BEIS,UKAEA,04/11/2020,Engineering Goods,Other,IS-Instruments Ltd,5084883,"20,820.00"
BEIS,UKAEA,04/11/2020,Engineering Goods,Fusion,B & M Engineers Ltd,5084885,530.00
BEIS,UKAEA,06/11/2020,Hired Agency Staff - Rullion CMF/PO,Fusion,Rullion Engineering Ltd,5084886,"4,059.00"
BEIS,UKAEA,06/11/2020,Hired Agency Staff - Rullion CMF/PO,Fusion,Rullion Engineering Ltd,5084887,"2,407.84"
BEIS,UKAEA,06/11/2020,Hired Agency Staff - Rullion CMF/PO,Other,Rullion Engineering Ltd,5084890,"1,512.00"
BEIS,UKAEA,06/11/2020,Hired Agency Staff - Rullion Technical CMF/PO,Fusion,Rullion Engineering Ltd,5084891,"1,846.45"
BEIS,UKAEA,04/11/2020,Engineering Goods,Fusion,RS Components Ltd,5084892,586.73
BEIS,UKAEA,06/11/2020,Hired Agency Staff - Rullion CMF/PO,Support Services,Rullion Engineering Ltd,5084895,"9,967.22"
BEIS,UKAEA,04/11/2020,Operational Goods,Fusion,Arco Ltd,5084899,850.00
BEIS,UKAEA,04/11/2020,Engineering Goods,Fusion,Trinity Fire & Security Systems Ltd,5084900,"2,623.63"
BEIS,UKAEA,06/11/2020,Hired Agency Staff - Rullion CMF/PO,Fusion,Rullion Engineering Ltd,5084905,"4,165.52"
BEIS,UKAEA,06/11/2020,Hired Agency Staff - Rullion CMF/PO,Fusion,Rullion Engineering Ltd,5084906,"7,500.00"
BEIS,UKAEA,04/11/2020,Facilities,Support Services,SouthernsBroadstock Limited,5084912,504.00
BEIS,UKAEA,06/11/2020,Hired Agency Staff - Rullion CMF/PO,Fusion,Rullion Engineering Ltd,5084914,"5,603.13"
BEIS,UKAEA,04/11/2020,Professional Services,Fusion,OHES Environmental Ltd,5084916,"4,037.76"
BEIS,UKAEA,04/11/2020,Professional Services,Fusion,Brimstone Enterprises Ltd.,5084920,"12,266.00"
BEIS,UKAEA,06/11/2020,Hired Agency Staff - Rullion CMF/PO,Fusion,Rullion Engineering Ltd,5084921,"6,210.00"
BEIS,UKAEA,06/11/2020,Hired Agency Staff - Rullion CMF/PO,Property,Rullion Engineering Ltd,5084922,"5,313.07"
BEIS,UKAEA,06/11/2020,Hired Agency Staff - Rullion CMF/PO,Fusion,Rullion Engineering Ltd,5084923,"3,301.42"
BEIS,UKAEA,06/11/2020,Hired Agency Staff - Rullion CMF/PO,Fusion,Rullion Engineering Ltd,5084926,"1,469.14"
BEIS,UKAEA,06/11/2020,Hired Agency Staff - Rullion Technical CMF/PO,Fusion,Rullion Engineering Ltd,5084927,"3,156.00"
BEIS,UKAEA,04/11/2020,ICT,Fusion,Softcat Plc,5084928,990.00
BEIS,UKAEA,04/11/2020,Facilities,Fusion,Trinity Fire & Security Systems Ltd,5084930,565.53
BEIS,UKAEA,06/11/2020,Hired Agency Staff - Rullion CMF/PO,Support Services,Rullion Engineering Ltd,5084931,"6,066.15"
BEIS,UKAEA,06/11/2020,Hired Agency Staff - Rullion Technical CMF/PO,Fusion,Rullion Engineering Ltd,5084932,"4,436.68"
BEIS,UKAEA,06/11/2020,Hired Agency Staff - Rullion CMF/PO,Fusion,Rullion Engineering Ltd,5084934,"3,532.38"
BEIS,UKAEA,06/11/2020,Hired Agency Staff - Rullion CMF/PO,Other,Rullion Engineering Ltd,5084935,"11,041.52"
BEIS,UKAEA,06/11/2020,Hired Agency Staff - Rullion CMF/PO,Support Services,Rullion Engineering Ltd,5084936,"5,617.52"
BEIS,UKAEA,06/11/2020,Hired Agency Staff - Rullion CMF/PO,Other,Rullion Engineering Ltd,5084939,"9,886.89"
BEIS,UKAEA,06/11/2020,Hired Agency Staff - Rullion CMF/PO,Fusion,Rullion Engineering Ltd,5084944,577.22
BEIS,UKAEA,06/11/2020,Hired Agency Staff - Rullion CMF/PO,Support Services,Rullion Engineering Ltd,5084946,733.09
BEIS,UKAEA,06/11/2020,Hired Agency Staff - Rullion CMF/PO,Fusion,Rullion Engineering Ltd,5084947,"9,374.64"
BEIS,UKAEA,06/11/2020,Professional Services,Fusion,Nuvia Limited,5084949,"25,000.00"
BEIS,UKAEA,06/11/2020,Hired Agency Staff - Rullion Technical CMF/PO,Fusion,Rullion Engineering Ltd,5084951,"1,659.62"
BEIS,UKAEA,06/11/2020,Hired Agency Staff - Rullion Technical CMF/PO,Fusion,Rullion Engineering Ltd,5084955,"3,457.26"
BEIS,UKAEA,06/11/2020,Hired Agency Staff - Rullion Technical CMF/PO,Fusion,Rullion Engineering Ltd,5084956,"1,890.55"
BEIS,UKAEA,06/11/2020,Hired Agency Staff - Rullion CMF/PO,Fusion,Rullion Engineering Ltd,5084957,"5,769.84"
BEIS,UKAEA,06/11/2020,Hired Agency Staff - Rullion CMF/PO,Fusion,Rullion Engineering Ltd,5084958,"4,521.39"
BEIS,UKAEA,06/11/2020,Hired Agency Staff - Rullion CMF/PO,Other,Rullion Engineering Ltd,5084960,"3,047.35"
BEIS,UKAEA,06/11/2020,Hired Agency Staff - Rullion CMF/PO,Fusion,Rullion Engineering Ltd,5084962,"3,654.00"
BEIS,UKAEA,06/11/2020,Hired Agency Staff - Rullion CMF/PO,Fusion,Rullion Engineering Ltd,5084964,"7,500.00"
BEIS,UKAEA,04/11/2020,Professional Services,Fusion,89up Ltd,5084965,"8,833.00"
BEIS,UKAEA,04/11/2020,Professional Services,Fusion,89up Ltd,5084965,"16,979.00"
BEIS,UKAEA,06/11/2020,Hired Agency Staff - Rullion CMF/PO,Support Services,Rullion Engineering Ltd,5084966,"2,778.00"
BEIS,UKAEA,06/11/2020,Hired Agency Staff - Rullion CMF/PO,Fusion,Rullion Engineering Ltd,5084970,"2,790.90"
BEIS,UKAEA,06/11/2020,Hired Agency Staff - Rullion CMF/PO,Fusion,Rullion Engineering Ltd,5084971,"1,720.60"
BEIS,UKAEA,04/11/2020,Professional Services,Support Services,Hydrock Consultants Ltd,5084973,"1,008.00"
BEIS,UKAEA,06/11/2020,Hired Agency Staff - Rullion CMF/PO,Fusion,Rullion Engineering Ltd,5084976,753.65
BEIS,UKAEA,06/11/2020,Hired Agency Staff - Rullion CMF/PO,Fusion,Rullion Engineering Ltd,5084979,"5,205.39"
BEIS,UKAEA,09/11/2020,Professional Services,Property,Celtech Consultancy Ltd,5084990,950.00
BEIS,UKAEA,06/11/2020,Hired Agency Staff - Rullion CMF/PO,Fusion,Rullion Engineering Ltd,5084993,"5,253.00"
BEIS,UKAEA,06/11/2020,Hired Agency Staff - Rullion CMF/PO,Fusion,Rullion Engineering Ltd,5084994,"3,063.35"
BEIS,UKAEA,06/11/2020,Hired Agency Staff - Rullion CMF/PO,Fusion,Rullion Engineering Ltd,5084995,"5,329.54"
BEIS,UKAEA,06/11/2020,Hired Agency Staff - Rullion CMF/PO,Fusion,Rullion Engineering Ltd,5084996,"5,530.51"
BEIS,UKAEA,06/11/2020,Hired Agency Staff - Rullion Technical CMF/PO,Fusion,Rullion Engineering Ltd,5084999,"2,341.61"
BEIS,UKAEA,06/11/2020,Hired Agency Staff - Rullion Technical CMF/PO,Fusion,Rullion Engineering Ltd,5085000,"3,125.53"
BEIS,UKAEA,06/11/2020,Hired Agency Staff - Rullion Technical CMF/PO,Fusion,Rullion Engineering Ltd,5085001,"2,628.96"
BEIS,UKAEA,06/11/2020,Hired Agency Staff - Rullion Technical CMF/PO,Fusion,Rullion Engineering Ltd,5085002,"1,761.77"
BEIS,UKAEA,06/11/2020,Hired Agency Staff - Rullion Technical CMF/PO,Fusion,Rullion Engineering Ltd,5085003,"2,360.09"
BEIS,UKAEA,09/11/2020,Office Solutions,Fusion,Elsevier Science BV - GBP,5085004,"2,160.00"
BEIS,UKAEA,06/11/2020,Hired Agency Staff - Rullion CMF/PO,Fusion,Rullion Engineering Ltd,5085006,"3,439.95"
BEIS,UKAEA,06/11/2020,Office Solutions,Fusion,IOP Publishing Ltd - EUR,5085007,937.50
BEIS,UKAEA,06/11/2020,Office Solutions,Fusion,IOP Publishing Ltd - EUR,5085008,729.17
BEIS,UKAEA,06/11/2020,Office Solutions,Fusion,IOP Publishing Ltd - EUR,5085009,"4,062.50"
BEIS,UKAEA,06/11/2020,Office Solutions,Fusion,IOP Publishing Ltd - EUR,5085010,"1,666.67"
BEIS,UKAEA,06/11/2020,Engineering Goods,Fusion,L G Kimber (Engineering) Ltd,5085011,"1,390.00"
BEIS,UKAEA,06/11/2020,Hired Agency Staff - Rullion CMF/PO,Other,Rullion Engineering Ltd,5085013,"2,514.00"
BEIS,UKAEA,06/11/2020,Hired Agency Staff - Rullion CMF/PO,Fusion,Rullion Engineering Ltd,5085014,"2,272.50"
BEIS,UKAEA,06/11/2020,Hired Agency Staff - Rullion Technical CMF/PO,Fusion,Rullion Engineering Ltd,5085015,"2,489.64"
BEIS,UKAEA,06/11/2020,Hired Agency Staff - Rullion CMF/PO,Support Services,Rullion Engineering Ltd,5085016,"2,019.41"
BEIS,UKAEA,06/11/2020,Hired Agency Staff - Rullion Technical CMF/PO,Fusion,Rullion Engineering Ltd,5085017,"2,767.52"
BEIS,UKAEA,09/11/2020,Professional Services,Fusion,Collinson Grant,5085018,"1,700.00"
BEIS,UKAEA,06/11/2020,Hired Agency Staff - Rullion Technical CMF/PO,Fusion,Rullion Engineering Ltd,5085019,"2,951.92"
BEIS,UKAEA,06/11/2020,Hired Agency Staff - Rullion Technical CMF/PO,Fusion,Rullion Engineering Ltd,5085021,"5,056.62"
BEIS,UKAEA,06/11/2020,Hired Agency Staff - Rullion Technical CMF/PO,Fusion,Rullion Engineering Ltd,5085022,"2,210.25"
BEIS,UKAEA,06/11/2020,Hired Agency Staff - Rullion CMF/PO,Fusion,Rullion Engineering Ltd,5085023,"7,878.14"
BEIS,UKAEA,06/11/2020,Hired Agency Staff - Rullion CMF/PO,Fusion,Rullion Engineering Ltd,5085025,"10,320.60"
BEIS,UKAEA,06/11/2020,Hired Agency Staff - Rullion CMF/PO,Fusion,Rullion Engineering Ltd,5085026,"9,438.77"
BEIS,UKAEA,06/11/2020,Hired Agency Staff - Rullion CMF/PO,Support Services,Rullion Engineering Ltd,5085027,"8,025.01"
BEIS,UKAEA,06/11/2020,Hired Agency Staff - Rullion CMF/PO,Support Services,Rullion Engineering Ltd,5085028,"8,034.38"
BEIS,UKAEA,06/11/2020,Hired Agency Staff - Rullion CMF/PO,Support Services,Rullion Engineering Ltd,5085029,"8,044.52"
BEIS,UKAEA,09/11/2020,Engineering Goods,Other,Farnell Electronic Components Ltd,5085030,"1,449.76"
BEIS,UKAEA,09/11/2020,Professional Services,Other,Frazer Nash Consultancy,5085031,"1,146.55"
BEIS,UKAEA,06/11/2020,Hired Agency Staff - Rullion CMF/PO,Other,Rullion Engineering Ltd,5085032,"5,562.00"
BEIS,UKAEA,06/11/2020,Hired Agency Staff - Rullion CMF/PO,Other,Rullion Engineering Ltd,5085033,991.42
BEIS,UKAEA,06/11/2020,Hired Agency Staff - Rullion CMF/PO,Fusion,Rullion Engineering Ltd,5085034,611.63
BEIS,UKAEA,06/11/2020,Hired Agency Staff - Rullion Technical CMF/PO,Fusion,Rullion Engineering Ltd,5085035,"1,496.85"
BEIS,UKAEA,09/11/2020,Engineering Goods,Fusion,Arco Ltd,5085036,900.00
BEIS,UKAEA,09/11/2020,Professional Services,Fusion,Faithful+Gould,5085037,"20,893.24"
BEIS,UKAEA,06/11/2020,Hired Agency Staff - Rullion CMF/PO,Fusion,Rullion Engineering Ltd,5085038,"3,174.00"
BEIS,UKAEA,06/11/2020,Hired Agency Staff - Rullion CMF/PO,Fusion,Rullion Engineering Ltd,5085039,"6,756.39"
BEIS,UKAEA,09/11/2020,ICT,Fusion,Wind River UK Ltd,5085040,"43,200.00"
BEIS,UKAEA,06/11/2020,Hired Agency Staff - Rullion Technical CMF/PO,Fusion,Rullion Engineering Ltd,5085043,"3,062.54"
BEIS,UKAEA,06/11/2020,Hired Agency Staff - Rullion Technical CMF/PO,Fusion,Rullion Engineering Ltd,5085044,"2,765.85"
BEIS,UKAEA,06/11/2020,Hired Agency Staff - Rullion CMF/PO,Support Services,Rullion Engineering Ltd,5085046,"3,990.66"
BEIS,UKAEA,06/11/2020,Hired Agency Staff - Rullion CMF/PO,Support Services,Rullion Engineering Ltd,5085049,"7,323.00"
BEIS,UKAEA,09/11/2020,Professional Services,Fusion,RCD Lockinge Ltd,5085050,"2,155.44"
BEIS,UKAEA,09/11/2020,Office Solutions,Property,Identilam Limited,5085051,846.00
BEIS,UKAEA,06/11/2020,Hired Agency Staff - Rullion CMF/PO,Fusion,Rullion Engineering Ltd,5085053,"3,354.28"
BEIS,UKAEA,06/11/2020,Hired Agency Staff - Rullion CMF/PO,Support Services,Rullion Engineering Ltd,5085072,"2,076.29"
BEIS,UKAEA,06/11/2020,Hired Agency Staff - Rullion CMF/PO,Fusion,Rullion Engineering Ltd,5085073,"3,981.36"
BEIS,UKAEA,09/11/2020,Professional Services,Fusion,RCD Lockinge Ltd,5085077,"2,155.44"
BEIS,UKAEA,06/11/2020,Hired Agency Staff - Rullion CMF/PO,Fusion,Rullion Engineering Ltd,5085079,"16,789.52"
BEIS,UKAEA,06/11/2020,Hired Agency Staff - Rullion CMF/PO,Support Services,Rullion Engineering Ltd,5085080,"3,187.37"
BEIS,UKAEA,06/11/2020,Hired Agency Staff - Rullion CMF/PO,Support Services,Rullion Engineering Ltd,5085081,"3,010.29"
BEIS,UKAEA,09/11/2020,Professional Services,Fusion,RCD Lockinge Ltd,5085082,"2,155.44"
BEIS,UKAEA,09/11/2020,Professional Services,Fusion,RCD Lockinge Ltd,5085084,"2,155.44"
BEIS,UKAEA,09/11/2020,Engineering Goods,Fusion,Tesla Engineering Ltd,5085085,"49,600.00"
BEIS,UKAEA,13/11/2020,Engineering Goods,Fusion,Tesla Engineering Ltd,5085086,"81,183.47"
BEIS,UKAEA,09/11/2020,Professional Services,Fusion,RCD Lockinge Ltd,5085087,"1,346.08"
BEIS,UKAEA,09/11/2020,Engineering Goods,Fusion,RCD Lockinge Ltd,5085087,"2,964.80"
BEIS,UKAEA,09/11/2020,Professional Services,Fusion,RCD Lockinge Ltd,5085088,"16,682.06"
BEIS,UKAEA,09/11/2020,Engineering Goods,Fusion,RCD Lockinge Ltd,5085089,"8,754.28"
BEIS,UKAEA,09/11/2020,Professional Services,Other,RCD Lockinge Ltd,5085090,"1,262.84"
BEIS,UKAEA,09/11/2020,Professional Services,Fusion,RCD Lockinge Ltd,5085091,"16,973.59"
BEIS,UKAEA,09/11/2020,Professional Services,Other,RCD Lockinge Ltd,5085095,"1,578.55"
BEIS,UKAEA,09/11/2020,Professional Services,Fusion,RCD Lockinge Ltd,5085096,"21,502.87"
BEIS,UKAEA,06/11/2020,Hired Agency Staff - Rullion CMF/PO,Fusion,Rullion Engineering Ltd,5085097,"3,468.58"
BEIS,UKAEA,06/11/2020,Hired Agency Staff - Rullion CMF/PO,Fusion,Rullion Engineering Ltd,5085098,"2,643.75"
BEIS,UKAEA,06/11/2020,Hired Agency Staff - Rullion CMF/PO,Fusion,Rullion Engineering Ltd,5085099,"5,520.00"
BEIS,UKAEA,06/11/2020,Hired Agency Staff - Rullion CMF/PO,Fusion,Rullion Engineering Ltd,5085100,"5,715.00"
BEIS,UKAEA,06/11/2020,Hired Agency Staff - Rullion CMF/PO,Fusion,Rullion Engineering Ltd,5085101,"4,315.85"
BEIS,UKAEA,06/11/2020,Hired Agency Staff - Rullion CMF/PO,Fusion,Rullion Engineering Ltd,5085102,"5,200.52"
BEIS,UKAEA,06/11/2020,Hired Agency Staff - Rullion CMF/PO,Fusion,Rullion Engineering Ltd,5085103,"4,855.01"
BEIS,UKAEA,06/11/2020,Hired Agency Staff - Rullion CMF/PO,Fusion,Rullion Engineering Ltd,5085104,"6,391.13"
BEIS,UKAEA,09/11/2020,Professional Services,Fusion,RCD Lockinge Ltd,5085105,"2,219.99"
BEIS,UKAEA,09/11/2020,Professional Services,Fusion,RCD Lockinge Ltd,5085105,"11,345.69"
BEIS,UKAEA,06/11/2020,Personnel Related,Fusion,Nuvia Limited,5085106,"12,801.67"
BEIS,UKAEA,09/11/2020,Professional Services,Other,RCD Lockinge Ltd,5085107,-925.66
BEIS,UKAEA,06/11/2020,Hired Agency Staff - Rullion CMF/PO,Fusion,Rullion Engineering Ltd,5085108,"7,854.11"
BEIS,UKAEA,09/11/2020,ICT,Fusion,Dell Corporation Ltd,5085110,510.00
BEIS,UKAEA,09/11/2020,ICT,Fusion,Dell Corporation Ltd,5085111,"26,347.25"
BEIS,UKAEA,09/11/2020,ICT,Fusion,Anixter UK Ltd,5085112,"3,772.62"
BEIS,UKAEA,09/11/2020,ICT,Fusion,Dell Corporation Ltd,5085113,"25,750.00"
BEIS,UKAEA,09/11/2020,Engineering Goods,Fusion,Scanwel,5085115,646.00
BEIS,UKAEA,09/11/2020,ICT,Other,Dell Corporation Ltd,5085116,"6,119.40"
BEIS,UKAEA,09/11/2020,Engineering Goods,Other,Rittal Limited,5085117,"1,813.28"
BEIS,UKAEA,09/11/2020,ICT,Fusion,Dell Corporation Ltd,5085119,"10,547.44"
BEIS,UKAEA,09/11/2020,ICT,Fusion,Underwoods Electrical Distributors,5085121,"2,188.75"
BEIS,UKAEA,06/11/2020,Hired Agency Staff - Rullion CMF/PO,Fusion,Rullion Engineering Ltd,5085122,"1,121.26"
BEIS,UKAEA,09/11/2020,ICT,Fusion,Dell Corporation Ltd,5085123,"2,777.22"
BEIS,UKAEA,09/11/2020,ICT,Other,Dell Corporation Ltd,5085124,"1,909.42"
BEIS,UKAEA,06/11/2020,Hired Agency Staff - Rullion CMF/PO,Support Services,Rullion Engineering Ltd,5085125,"1,688.80"
BEIS,UKAEA,06/11/2020,Hired Agency Staff - Rullion CMF/PO,Fusion,Rullion Engineering Ltd,5085126,"3,720.68"
BEIS,UKAEA,06/11/2020,Hired Agency Staff - Rullion CMF/PO,Fusion,Rullion Engineering Ltd,5085129,"2,208.00"
BEIS,UKAEA,06/11/2020,Hired Agency Staff - Rullion CMF/PO,Fusion,Rullion Engineering Ltd,5085133,"2,633.87"
BEIS,UKAEA,06/11/2020,Hired Agency Staff - Rullion CMF/PO,Fusion,Rullion Engineering Ltd,5085136,"13,296.64"
BEIS,UKAEA,06/11/2020,Hired Agency Staff - Rullion CMF/PO,Fusion,Rullion Engineering Ltd,5085137,950.71
BEIS,UKAEA,06/11/2020,Hired Agency Staff - Rullion CMF/PO,Fusion,Rullion Engineering Ltd,5085138,"4,154.04"
BEIS,UKAEA,09/11/2020,Engineering Goods,Fusion,RS Components Ltd,5085140,837.60
BEIS,UKAEA,06/11/2020,Hired Agency Staff - Rullion Technical CMF/PO,Fusion,Rullion Engineering Ltd,5085141,"1,953.75"
BEIS,UKAEA,09/11/2020,Energy and Fuels,Fusion,EDF Energy,5085143,"465,761.87"
BEIS,UKAEA,09/11/2020,Engineering Goods,Fusion,Assystem UK Limited,5085144,"8,236.06"
BEIS,UKAEA,06/11/2020,Hired Agency Staff - Rullion CMF/PO,Other,Rullion Engineering Ltd,5085145,"5,219.79"
BEIS,UKAEA,06/11/2020,Hired Agency Staff - Rullion CMF/PO,Fusion,Rullion Engineering Ltd,5085146,"2,697.01"
BEIS,UKAEA,06/11/2020,Hired Agency Staff - Rullion CMF/PO,Fusion,Rullion Engineering Ltd,5085147,"3,401.93"
BEIS,UKAEA,09/11/2020,Engineering Goods,Fusion,Chell Instruments Ltd,5085151,"2,162.00"
BEIS,UKAEA,06/11/2020,Hired Agency Staff - Rullion CMF/PO,Support Services,Rullion Engineering Ltd,5085156,"3,658.85"
BEIS,UKAEA,06/11/2020,Hired Agency Staff - Rullion CMF/PO,Fusion,Rullion Engineering Ltd,5085157,"3,207.45"
BEIS,UKAEA,06/11/2020,Hired Agency Staff - Rullion CMF/PO,Support Services,Rullion Engineering Ltd,5085162,"4,807.37"
BEIS,UKAEA,06/11/2020,Hired Agency Staff - Rullion CMF/PO,Support Services,Rullion Engineering Ltd,5085163,"8,379.00"
BEIS,UKAEA,06/11/2020,Hired Agency Staff - Rullion CMF/PO,Support Services,Rullion Engineering Ltd,5085164,"10,540.12"
BEIS,UKAEA,06/11/2020,Hired Agency Staff - Rullion CMF/PO,Fusion,Rullion Engineering Ltd,5085167,"2,005.61"
BEIS,UKAEA,06/11/2020,Hired Agency Staff - Rullion CMF/PO,Other,Rullion Engineering Ltd,5085168,"1,092.00"
BEIS,UKAEA,06/11/2020,Hired Agency Staff - Rullion CMF/PO,Other,Rullion Engineering Ltd,5085169,"10,374.44"
BEIS,UKAEA,06/11/2020,Hired Agency Staff - Rullion CMF/PO,Other,Rullion Engineering Ltd,5085170,"7,898.67"
BEIS,UKAEA,06/11/2020,Hired Agency Staff - Rullion CMF/PO,Fusion,Rullion Engineering Ltd,5085175,"5,524.52"
BEIS,UKAEA,06/11/2020,Hired Agency Staff - Rullion Technical CMF/PO,Fusion,Rullion Engineering Ltd,5085176,"1,436.71"
BEIS,UKAEA,13/11/2020,Office Solutions,Fusion,MDPI AG,5085178,"1,462.58"
BEIS,UKAEA,06/11/2020,Personnel Related,Fusion,Nuvia Limited,5085179,"13,264.96"
BEIS,UKAEA,09/11/2020,Engineering Goods,Fusion,Meridian Biotechnologies Ltd.,5085180,520.00
BEIS,UKAEA,09/11/2020,Professional Services,Fusion,Tessella Ltd,5085181,"12,221.55"
BEIS,UKAEA,12/11/2020,Professional Services,Fusion,Trasys International G E I E,5085182,"9,903.30"
BEIS,UKAEA,06/11/2020,Hired Agency Staff - Rullion CMF/PO,Fusion,Rullion Engineering Ltd,5085183,"4,405.52"
BEIS,UKAEA,06/11/2020,Hired Agency Staff - Rullion CMF/PO,Fusion,Rullion Engineering Ltd,5085184,"9,427.52"
BEIS,UKAEA,06/11/2020,Engineering Goods,Fusion,BOC Ltd,5085186,"61,245.83"
BEIS,UKAEA,09/11/2020,Office Solutions,Fusion,The Royal Society,5085187,"1,700.00"
BEIS,UKAEA,06/11/2020,Hired Agency Staff - Rullion CMF/PO,Support Services,Rullion Engineering Ltd,5085191,"2,971.60"
BEIS,UKAEA,06/11/2020,Hired Agency Staff - Rullion CMF/PO,Fusion,Rullion Engineering Ltd,5085193,"7,548.00"
BEIS,UKAEA,06/11/2020,Hired Agency Staff - Rullion CMF/PO,Fusion,Rullion Engineering Ltd,5085194,"7,522.84"
BEIS,UKAEA,06/11/2020,Hired Agency Staff - Rullion CMF/PO,Fusion,Rullion Engineering Ltd,5085195,"8,407.54"
BEIS,UKAEA,11/11/2020,Hired Agency Staff - Rullion CMF/PO,Other,Rullion Engineering Ltd,5085196,"3,063.00"
BEIS,UKAEA,11/11/2020,Hired Agency Staff - Rullion CMF/PO,Fusion,Rullion Engineering Ltd,5085197,"5,334.74"
BEIS,UKAEA,11/11/2020,Hired Agency Staff - Rullion CMF/PO,Support Services,Rullion Engineering Ltd,5085203,"1,126.40"
BEIS,UKAEA,11/11/2020,Hired Agency Staff - Rullion CMF/PO,Fusion,Rullion Engineering Ltd,5085206,"3,064.52"
BEIS,UKAEA,11/11/2020,Hired Agency Staff - Rullion CMF/PO,Fusion,Rullion Engineering Ltd,5085207,"1,104.92"
BEIS,UKAEA,11/11/2020,Hired Agency Staff - Rullion CMF/PO,Fusion,Rullion Engineering Ltd,5085209,"19,545.63"
BEIS,UKAEA,11/11/2020,Hired Agency Staff - Rullion CMF/PO,Fusion,Rullion Engineering Ltd,5085210,"3,847.42"
BEIS,UKAEA,11/11/2020,Hired Agency Staff - Rullion CMF/PO,Support Services,Rullion Engineering Ltd,5085213,"4,881.60"
BEIS,UKAEA,11/11/2020,Facilities,Property,OCS Group UK Ltd,5085214,"4,803.98"
BEIS,UKAEA,11/11/2020,Facilities,Property,OCS Group UK Ltd,5085216,"1,270.26"
BEIS,UKAEA,11/11/2020,Facilities,Property,OCS Group UK Ltd,5085217,"1,910.04"
BEIS,UKAEA,11/11/2020,Hired Agency Staff - Rullion CMF/PO,Fusion,Rullion Engineering Ltd,5085218,"4,119.10"
BEIS,UKAEA,11/11/2020,Hired Agency Staff - Rullion CMF/PO,Fusion,Rullion Engineering Ltd,5085219,"4,165.10"
BEIS,UKAEA,11/11/2020,Hired Agency Staff - Rullion CMF/PO,Fusion,Rullion Engineering Ltd,5085220,"5,329.68"
BEIS,UKAEA,11/11/2020,Hired Agency Staff - Rullion CMF/PO,Other,Rullion Engineering Ltd,5085222,"3,640.62"
BEIS,UKAEA,09/11/2020,Facilities,Fusion,Trinity Fire & Security Systems Ltd,5085223,"3,347.66"
BEIS,UKAEA,09/11/2020,Facilities,Fusion,Trinity Fire & Security Systems Ltd,5085224,"1,461.00"
BEIS,UKAEA,11/11/2020,Hired Agency Staff - Rullion CMF/PO,Fusion,Rullion Engineering Ltd,5085225,"3,241.34"
BEIS,UKAEA,11/11/2020,Hired Agency Staff - Rullion CMF/PO,Property,Rullion Engineering Ltd,5085226,"2,577.92"
BEIS,UKAEA,09/11/2020,Professional Services,Property,Carter Jonas LLP,5085227,"3,797.00"
BEIS,UKAEA,11/11/2020,Hired Agency Staff - Rullion CMF/PO,Property,Rullion Engineering Ltd,5085228,"10,443.99"
BEIS,UKAEA,11/11/2020,Hired Agency Staff - Rullion CMF/PO,Support Services,Rullion Engineering Ltd,5085229,"4,580.10"
BEIS,UKAEA,11/11/2020,Hired Agency Staff - Rullion CMF/PO,Support Services,Rullion Engineering Ltd,5085230,"12,097.95"
BEIS,UKAEA,11/11/2020,Hired Agency Staff - Rullion CMF/PO,Fusion,Rullion Engineering Ltd,5085231,"6,622.78"
BEIS,UKAEA,09/11/2020,Professional Services,Fusion,Rolls Royce Plc,5085232,"14,488.00"
BEIS,UKAEA,11/11/2020,Hired Agency Staff - Rullion CMF/PO,Support Services,Rullion Engineering Ltd,5085233,"2,387.88"
BEIS,UKAEA,11/11/2020,Hired Agency Staff - Rullion Technical CMF/PO,Fusion,Rullion Engineering Ltd,5085234,"2,367.00"
BEIS,UKAEA,09/11/2020,ICT,Fusion,Media Resources,5085236,888.00
BEIS,UKAEA,09/11/2020,ICT,Fusion,Fujitsu Services Ltd,5085237,"4,683.33"
BEIS,UKAEA,09/11/2020,Engineering Goods,Property,Edmundson Electricals Ltd,5085240,"1,232.96"
BEIS,UKAEA,09/11/2020,Engineering Goods,Property,Edmundson Electricals Ltd,5085244,"1,668.89"
BEIS,UKAEA,11/11/2020,Hired Agency Staff - Rullion CMF/PO,Fusion,Rullion Engineering Ltd,5085245,"1,904.18"
BEIS,UKAEA,11/11/2020,Hired Agency Staff - Rullion Technical CMF/PO,Fusion,Rullion Engineering Ltd,5085246,"2,235.64"
BEIS,UKAEA,11/11/2020,Hired Agency Staff - Rullion Technical CMF/PO,Fusion,Rullion Engineering Ltd,5085247,"2,264.91"
BEIS,UKAEA,09/11/2020,Facilities,Fusion,Trinity Fire & Security Systems Ltd,5085249,"3,093.27"
BEIS,UKAEA,09/11/2020,Facilities,Property,Trinity Fire & Security Systems Ltd,5085249,"6,186.54"
BEIS,UKAEA,11/11/2020,Engineering Goods,Fusion,BOC Ltd,5085250,"1,519.32"
BEIS,UKAEA,11/11/2020,Hired Agency Staff - Rullion Technical CMF/PO,Fusion,Rullion Engineering Ltd,5085251,"2,384.12"
BEIS,UKAEA,11/11/2020,Hired Agency Staff - Rullion Technical CMF/PO,Fusion,Rullion Engineering Ltd,5085252,"2,099.80"
BEIS,UKAEA,11/11/2020,Hired Agency Staff - Rullion CMF/PO,Support Services,Rullion Engineering Ltd,5085254,"13,924.52"
BEIS,UKAEA,11/11/2020,Hired Agency Staff - Rullion CMF/PO,Support Services,Rullion Engineering Ltd,5085255,"7,122.00"
BEIS,UKAEA,11/11/2020,Hired Agency Staff - Rullion Technical CMF/PO,Fusion,Rullion Engineering Ltd,5085256,"1,857.55"
BEIS,UKAEA,11/11/2020,Hired Agency Staff - Rullion CMF/PO,Fusion,Rullion Engineering Ltd,5085257,"8,606.62"
BEIS,UKAEA,09/11/2020,Engineering Goods,Fusion,Leybold UK Ltd,5085258,"2,746.50"
BEIS,UKAEA,11/11/2020,Hired Agency Staff - Rullion CMF/PO,Fusion,Rullion Engineering Ltd,5085259,"4,009.75"
BEIS,UKAEA,11/11/2020,Hired Agency Staff - Rullion Technical CMF/PO,Fusion,Rullion Engineering Ltd,5085262,"1,652.70"
BEIS,UKAEA,11/11/2020,Hired Agency Staff - Rullion Technical CMF/PO,Fusion,Rullion Engineering Ltd,5085263,"1,902.18"
BEIS,UKAEA,11/11/2020,Hired Agency Staff - Rullion Technical CMF/PO,Fusion,Rullion Engineering Ltd,5085264,"1,174.30"
BEIS,UKAEA,11/11/2020,Hired Agency Staff - Rullion Technical CMF/PO,Fusion,Rullion Engineering Ltd,5085265,590.55
BEIS,UKAEA,11/11/2020,Hired Agency Staff - Rullion CMF/PO,Other,Rullion Engineering Ltd,5085266,"4,074.23"
BEIS,UKAEA,09/11/2020,Professional Services,Fusion,M5tec Limited,5085267,"9,567.72"
BEIS,UKAEA,11/11/2020,Hired Agency Staff - Rullion CMF/PO,Support Services,Rullion Engineering Ltd,5085268,"1,888.82"
BEIS,UKAEA,11/11/2020,Hired Agency Staff - Rullion CMF/PO,Fusion,Rullion Engineering Ltd,5085269,"6,872.24"
BEIS,UKAEA,11/11/2020,Hired Agency Staff - Rullion CMF/PO,Fusion,Rullion Engineering Ltd,5085270,"3,567.39"
BEIS,UKAEA,11/11/2020,Hired Agency Staff - Rullion CMF/PO,Fusion,Rullion Engineering Ltd,5085271,"1,173.84"
BEIS,UKAEA,11/11/2020,Hired Agency Staff - Rullion CMF/PO,Support Services,Rullion Engineering Ltd,5085273,"8,602.45"
BEIS,UKAEA,11/11/2020,Engineering Goods,Fusion,BOC Ltd,5085274,584.70
BEIS,UKAEA,11/11/2020,Hired Agency Staff - Rullion CMF/PO,Fusion,Rullion Engineering Ltd,5085275,"2,916.58"
BEIS,UKAEA,11/11/2020,Hired Agency Staff - Rullion CMF/PO,Fusion,Rullion Engineering Ltd,5085276,"12,093.30"
BEIS,UKAEA,11/11/2020,Hired Agency Staff - Rullion CMF/PO,Support Services,Rullion Engineering Ltd,5085277,"8,226.80"
BEIS,UKAEA,11/11/2020,Hired Agency Staff - Rullion CMF/PO,Fusion,Rullion Engineering Ltd,5085279,"3,051.00"
BEIS,UKAEA,11/11/2020,Hired Agency Staff - Rullion CMF/PO,Other,Rullion Engineering Ltd,5085281,"16,019.96"
BEIS,UKAEA,11/11/2020,Hired Agency Staff - Rullion CMF/PO,Support Services,Rullion Engineering Ltd,5085282,"8,440.59"
BEIS,UKAEA,11/11/2020,Hired Agency Staff - Rullion CMF/PO,Fusion,Rullion Engineering Ltd,5085283,"6,528.00"
BEIS,UKAEA,09/11/2020,Engineering Goods,Fusion,Swagelok London,5085284,"5,980.00"
BEIS,UKAEA,09/11/2020,Professional Services,Fusion,National Composites Centre Operations Limited,5085285,"18,250.00"
BEIS,UKAEA,11/11/2020,Hired Agency Staff - Rullion CMF/PO,Fusion,Rullion Engineering Ltd,5085287,853.50
BEIS,UKAEA,11/11/2020,Hired Agency Staff - Rullion CMF/PO,Fusion,Rullion Engineering Ltd,5085288,"3,103.67"
BEIS,UKAEA,11/11/2020,Hired Agency Staff - Rullion CMF/PO,Fusion,Rullion Engineering Ltd,5085289,"2,684.70"
BEIS,UKAEA,11/11/2020,Hired Agency Staff - Rullion CMF/PO,Fusion,Rullion Engineering Ltd,5085290,"3,302.42"
BEIS,UKAEA,11/11/2020,Hired Agency Staff - Rullion CMF/PO,Other,Rullion Engineering Ltd,5085291,"6,288.67"
BEIS,UKAEA,11/11/2020,Hired Agency Staff - Rullion CMF/PO,Fusion,Rullion Engineering Ltd,5085292,"1,687.60"
BEIS,UKAEA,11/11/2020,Hired Agency Staff - Rullion Technical CMF/PO,Fusion,Rullion Engineering Ltd,5085293,"2,809.15"
BEIS,UKAEA,11/11/2020,Hired Agency Staff - Rullion CMF/PO,Other,Rullion Engineering Ltd,5085294,"3,114.00"
BEIS,UKAEA,09/11/2020,Professional Services,Fusion,HM Treasury T/A Government Internal Audit Service,5085295,"6,038.16"
BEIS,UKAEA,09/11/2020,Professional Services,Support Services,HM Treasury T/A Government Internal Audit Service,5085295,"21,879.33"
BEIS,UKAEA,09/11/2020,Professional Services,Other,HM Treasury T/A Government Internal Audit Service,5085296,"1,262.50"
BEIS,UKAEA,09/11/2020,Professional Services,Support Services,HM Treasury T/A Government Internal Audit Service,5085296,"14,102.88"
BEIS,UKAEA,09/11/2020,Engineering Goods,Fusion,Rexel UK Ltd,5085299,741.48
BEIS,UKAEA,09/11/2020,Engineering Goods,Fusion,Fortress Interlocks Ltd,5085300,"1,502.07"
BEIS,UKAEA,11/11/2020,Hired Agency Staff - Rullion CMF/PO,Fusion,Rullion Engineering Ltd,5085303,"11,386.35"
BEIS,UKAEA,11/11/2020,Hired Agency Staff - Rullion CMF/PO,Fusion,Rullion Engineering Ltd,5085304,"4,252.80"
BEIS,UKAEA,11/11/2020,Hired Agency Staff - Rullion CMF/PO,Fusion,Rullion Engineering Ltd,5085306,"8,873.17"
BEIS,UKAEA,11/11/2020,Hired Agency Staff - Rullion CMF/PO,Support Services,Rullion Engineering Ltd,5085307,"1,510.28"
BEIS,UKAEA,09/11/2020,Professional Services,Other,M5tec Limited,5085308,"4,950.00"
BEIS,UKAEA,11/11/2020,Hired Agency Staff - Rullion CMF/PO,Fusion,Rullion Engineering Ltd,5085309,"6,921.48"
BEIS,UKAEA,11/11/2020,Hired Agency Staff - Rullion CMF/PO,Fusion,Rullion Engineering Ltd,5085310,"7,437.00"
BEIS,UKAEA,11/11/2020,Hired Agency Staff - Rullion CMF/PO,Fusion,Rullion Engineering Ltd,5085311,"4,202.57"
BEIS,UKAEA,11/11/2020,Hired Agency Staff - Rullion CMF/PO,Fusion,Rullion Engineering Ltd,5085312,"4,518.60"
BEIS,UKAEA,11/11/2020,Hired Agency Staff - Rullion CMF/PO,Fusion,Rullion Engineering Ltd,5085313,"7,690.53"
BEIS,UKAEA,11/11/2020,Hired Agency Staff - Rullion CMF/PO,Fusion,Rullion Engineering Ltd,5085314,"6,077.75"
BEIS,UKAEA,11/11/2020,Hired Agency Staff - Rullion CMF/PO,Fusion,Rullion Engineering Ltd,5085315,"7,336.50"
BEIS,UKAEA,11/11/2020,Hired Agency Staff - Rullion CMF/PO,Fusion,Rullion Engineering Ltd,5085316,"4,669.52"
BEIS,UKAEA,11/11/2020,Hired Agency Staff - Rullion CMF/PO,Fusion,Rullion Engineering Ltd,5085317,"1,664.63"
BEIS,UKAEA,09/11/2020,Personnel Related,Other,Webrecruit,5085318,790.00
BEIS,UKAEA,11/11/2020,Hired Agency Staff - Rullion CMF/PO,Fusion,Rullion Engineering Ltd,5085319,"4,979.32"
BEIS,UKAEA,11/11/2020,Hired Agency Staff - Rullion CMF/PO,Support Services,Rullion Engineering Ltd,5085321,"10,213.52"
BEIS,UKAEA,11/11/2020,Hired Agency Staff - Rullion CMF/PO,Support Services,Rullion Engineering Ltd,5085322,"9,873.07"
BEIS,UKAEA,11/11/2020,Hired Agency Staff - Rullion CMF/PO,Support Services,Rullion Engineering Ltd,5085325,"12,420.45"
BEIS,UKAEA,11/11/2020,Hired Agency Staff - Rullion CMF/PO,Other,Rullion Engineering Ltd,5085326,"7,809.00"
BEIS,UKAEA,11/11/2020,Hired Agency Staff - Rullion CMF/PO,Support Services,Rullion Engineering Ltd,5085327,641.83
BEIS,UKAEA,11/11/2020,Hired Agency Staff - Rullion CMF/PO,Support Services,Rullion Engineering Ltd,5085328,"2,458.33"
BEIS,UKAEA,11/11/2020,Hired Agency Staff - Rullion CMF/PO,Support Services,Rullion Engineering Ltd,5085329,"6,527.25"
BEIS,UKAEA,09/11/2020,Energy and Fuels,Fusion,EDF Energy,5085330,"109,794.21"
BEIS,UKAEA,11/11/2020,Hired Agency Staff - Rullion CMF/PO,Fusion,Rullion Engineering Ltd,5085331,"4,615.52"
BEIS,UKAEA,11/11/2020,Hired Agency Staff - Rullion CMF/PO,Fusion,Rullion Engineering Ltd,5085333,769.05
BEIS,UKAEA,11/11/2020,Hired Agency Staff - Rullion CMF/PO,Fusion,Rullion Engineering Ltd,5085334,"2,863.23"
BEIS,UKAEA,11/11/2020,Professional Services,Property,CBG Consultants Ltd.,5085335,"1,540.00"
BEIS,UKAEA,11/11/2020,Hired Agency Staff - Rullion CMF/PO,Fusion,Rullion Engineering Ltd,5085341,"1,580.74"
BEIS,UKAEA,11/11/2020,Hired Agency Staff - Rullion CMF/PO,Fusion,Rullion Engineering Ltd,5085348,"6,947.10"
BEIS,UKAEA,11/11/2020,Hired Agency Staff - Rullion CMF/PO,Fusion,Rullion Engineering Ltd,5085349,"1,939.88"
BEIS,UKAEA,11/11/2020,Engineering Goods,Fusion,Manutan UK Limited,5085350,720.00
BEIS,UKAEA,11/11/2020,Engineering Goods,Fusion,Manutan UK Limited,5085351,720.00
BEIS,UKAEA,12/11/2020,Professional Services,Other,Teodoliten Matteknik AB,5085353,"1,878.83"
BEIS,UKAEA,11/11/2020,Professional Services,Fusion,Jacobs U.K. Limited,5085354,"27,281.51"
BEIS,UKAEA,11/11/2020,Professional Services,Fusion,Allan Webb Ltd,5085355,"6,933.50"
BEIS,UKAEA,11/11/2020,Engineering Goods,Support Services,Boxer Machine Tools Services,5085357,"3,100.00"
BEIS,UKAEA,11/11/2020,Engineering Goods,Support Services,Boxer Machine Tools Services,5085358,575.00
BEIS,UKAEA,11/11/2020,Hired Agency Staff - Rullion CMF/PO,Fusion,Rullion Engineering Ltd,5085359,"4,177.52"
BEIS,UKAEA,11/11/2020,Hired Agency Staff - Rullion CMF/PO,Support Services,Rullion Engineering Ltd,5085360,"1,003.36"
BEIS,UKAEA,11/11/2020,Hired Agency Staff - Rullion CMF/PO,Other,Rullion Engineering Ltd,5085361,"3,930.95"
BEIS,UKAEA,11/11/2020,Hired Agency Staff - Rullion CMF/PO,Other,Rullion Engineering Ltd,5085362,"3,257.48"
BEIS,UKAEA,11/11/2020,Learning and Development,Fusion,Trainingteam,5085366,"1,073.75"
BEIS,UKAEA,11/11/2020,Facilities,Fusion,OCS Group UK Ltd,5085370,"3,332.97"
BEIS,UKAEA,11/11/2020,Facilities,Property,OCS Group UK Ltd,5085371,"4,803.53"
BEIS,UKAEA,11/11/2020,Facilities,Fusion,OCS Group UK Ltd,5085371,"13,589.50"
BEIS,UKAEA,11/11/2020,Facilities,Property,OCS Group UK Ltd,5085371,"18,100.08"
BEIS,UKAEA,11/11/2020,Hired Agency Staff - Rullion CMF/PO,Other,Rullion Engineering Ltd,5085373,"1,821.38"
BEIS,UKAEA,11/11/2020,Hired Agency Staff - Rullion CMF/PO,Fusion,Rullion Engineering Ltd,5085375,"4,979.23"
BEIS,UKAEA,11/11/2020,Hired Agency Staff - Rullion CMF/PO,Fusion,Rullion Engineering Ltd,5085376,"5,247.00"
BEIS,UKAEA,11/11/2020,Hired Agency Staff - Rullion CMF/PO,Fusion,Rullion Engineering Ltd,5085377,"4,942.52"
BEIS,UKAEA,11/11/2020,Hired Agency Staff - Rullion CMF/PO,Fusion,Rullion Engineering Ltd,5085378,"6,232.52"
BEIS,UKAEA,11/11/2020,Hired Agency Staff - Rullion CMF/PO,Fusion,Rullion Engineering Ltd,5085379,"5,227.89"
BEIS,UKAEA,11/11/2020,Hired Agency Staff - Rullion CMF/PO,Fusion,Rullion Engineering Ltd,5085380,"4,949.00"
BEIS,UKAEA,11/11/2020,Hired Agency Staff - Rullion CMF/PO,Fusion,Rullion Engineering Ltd,5085381,"6,255.31"
BEIS,UKAEA,11/11/2020,Hired Agency Staff - Rullion CMF/PO,Fusion,Rullion Engineering Ltd,5085382,"4,768.00"
BEIS,UKAEA,11/11/2020,Hired Agency Staff - Rullion CMF/PO,Fusion,Rullion Engineering Ltd,5085383,"4,999.04"
BEIS,UKAEA,11/11/2020,Hired Agency Staff - Rullion CMF/PO,Fusion,Rullion Engineering Ltd,5085384,"3,410.35"
BEIS,UKAEA,11/11/2020,Hired Agency Staff - Rullion CMF/PO,Fusion,Rullion Engineering Ltd,5085385,"3,463.30"
BEIS,UKAEA,11/11/2020,Hired Agency Staff - Rullion CMF/PO,Fusion,Rullion Engineering Ltd,5085386,"6,370.28"
BEIS,UKAEA,11/11/2020,Hired Agency Staff - Rullion CMF/PO,Fusion,Rullion Engineering Ltd,5085387,"4,201.15"
BEIS,UKAEA,11/11/2020,Hired Agency Staff - Rullion CMF/PO,Fusion,Rullion Engineering Ltd,5085388,"2,530.22"
BEIS,UKAEA,11/11/2020,Hired Agency Staff - Rullion CMF/PO,Fusion,Rullion Engineering Ltd,5085389,"5,361.00"
BEIS,UKAEA,11/11/2020,Hired Agency Staff - Rullion CMF/PO,Fusion,Rullion Engineering Ltd,5085390,"5,361.00"
BEIS,UKAEA,11/11/2020,Hired Agency Staff - Rullion CMF/PO,Fusion,Rullion Engineering Ltd,5085391,"6,562.52"
BEIS,UKAEA,11/11/2020,Hired Agency Staff - Rullion CMF/PO,Fusion,Rullion Engineering Ltd,5085392,"3,943.52"
BEIS,UKAEA,11/11/2020,Hired Agency Staff - Rullion CMF/PO,Fusion,Rullion Engineering Ltd,5085393,"5,030.77"
BEIS,UKAEA,11/11/2020,Hired Agency Staff - Rullion CMF/PO,Fusion,Rullion Engineering Ltd,5085394,"2,023.50"
BEIS,UKAEA,11/11/2020,Hired Agency Staff - Rullion CMF/PO,Fusion,Rullion Engineering Ltd,5085395,"7,455.27"
BEIS,UKAEA,11/11/2020,Professional Services,Fusion,Glanville Consultants,5085396,"1,650.00"
BEIS,UKAEA,11/11/2020,Office Solutions,Fusion,IOP Publishing Ltd - GBP,5085397,"3,276.00"
BEIS,UKAEA,11/11/2020,ICT,Support Services,Softcat Plc,5085398,"12,914.00"
BEIS,UKAEA,11/11/2020,Professional Services,Fusion,Pelican Software Ltd,5085403,"4,960.73"
BEIS,UKAEA,11/11/2020,Hired Agency Staff - Rullion Technical CMF/PO,Fusion,Rullion Engineering Ltd,5085407,"1,981.92"
BEIS,UKAEA,11/11/2020,Operational Goods,Fusion,Fluid Branding Ltd.,5085409,950.00
BEIS,UKAEA,11/11/2020,Professional Services,Fusion,Atkins Ltd,5085410,"9,521.42"
BEIS,UKAEA,11/11/2020,Construction,Fusion,Sudlows Limited,5085412,"22,421.11"
BEIS,UKAEA,11/11/2020,Facilities,Property,Mears Estates,5085414,561.97
BEIS,UKAEA,11/11/2020,Hired Agency Staff - Rullion CMF/PO,Fusion,Rullion Engineering Ltd,5085420,"2,472.75"
BEIS,UKAEA,11/11/2020,Facilities,Property,Securitas Security Services,5085421,878.22
BEIS,UKAEA,11/11/2020,Facilities,Property,Securitas Security Services,5085421,"2,049.18"
BEIS,UKAEA,11/11/2020,Hired Agency Staff - Rullion CMF/PO,Fusion,Rullion Engineering Ltd,5085422,"6,115.52"
BEIS,UKAEA,08/10/2020,Professional Services,Fusion,Harworth Estates Investments Ltd,5085423,"1,904.64"
BEIS,UKAEA,08/10/2020,Construction,Fusion,Harworth Estates Investments Ltd,5085423,"17,608.95"
BEIS,UKAEA,08/10/2020,Facilities,Fusion,Harworth Estates Investments Ltd,5085423,"44,394.92"
BEIS,UKAEA,08/10/2020,Construction,Fusion,Harworth Estates Investments Ltd,5085423,"54,105.00"
BEIS,UKAEA,08/10/2020,Construction,Fusion,Harworth Estates Investments Ltd,5085423,"1,218,332.82"
BEIS,UKAEA,11/11/2020,Hired Agency Staff - Rullion CMF/PO,Fusion,Rullion Engineering Ltd,5085425,"4,364.79"
BEIS,UKAEA,11/11/2020,Hired Agency Staff - Rullion CMF/PO,Fusion,Rullion Engineering Ltd,5085426,"5,341.28"
BEIS,UKAEA,11/11/2020,Hired Agency Staff - Rullion CMF/PO,Fusion,Rullion Engineering Ltd,5085427,"2,564.10"
BEIS,UKAEA,11/11/2020,Hired Agency Staff - Rullion CMF/PO,Fusion,Rullion Engineering Ltd,5085428,"2,480.26"
BEIS,UKAEA,11/11/2020,Hired Agency Staff - Rullion CMF/PO,Fusion,Rullion Engineering Ltd,5085429,"6,037.51"
BEIS,UKAEA,11/11/2020,Professional Services,Fusion,Tessella Ltd,5085430,"14,018.40"
BEIS,UKAEA,12/11/2020,Professional Services,Fusion,Trasys International G E I E,5085431,"8,452.50"
BEIS,UKAEA,11/11/2020,Hired Agency Staff - Rullion CMF/PO,Fusion,Rullion Engineering Ltd,5085432,"4,487.67"
BEIS,UKAEA,11/11/2020,Professional Services,Fusion,Pelican Software Ltd,5085433,"6,133.86"
BEIS,UKAEA,11/11/2020,Hired Agency Staff - Rullion Technical CMF/PO,Fusion,Rullion Engineering Ltd,5085435,"2,100.00"
BEIS,UKAEA,11/11/2020,Hired Agency Staff - Rullion Technical CMF/PO,Fusion,Rullion Engineering Ltd,5085436,"1,575.00"
BEIS,UKAEA,11/11/2020,Hired Agency Staff - Rullion Technical CMF/PO,Fusion,Rullion Engineering Ltd,5085437,"2,132.44"
BEIS,UKAEA,11/11/2020,Hired Agency Staff - Rullion CMF/PO,Other,Rullion Engineering Ltd,5085438,"1,260.00"
BEIS,UKAEA,11/11/2020,Facilities,Fusion,OCS Group UK Ltd,5085441,"-2,157.43"
BEIS,UKAEA,11/11/2020,Hired Agency Staff - Rullion CMF/PO,Fusion,Rullion Engineering Ltd,5085442,"2,580.60"
BEIS,UKAEA,11/11/2020,Facilities,Fusion,OCS Group UK Ltd,5085443,"2,312.98"
BEIS,UKAEA,11/11/2020,Hired Agency Staff - Rullion CMF/PO,Fusion,Rullion Engineering Ltd,5085444,"3,036.00"
BEIS,UKAEA,11/11/2020,Hired Agency Staff - Rullion CMF/PO,Other,Rullion Engineering Ltd,5085445,"10,783.14"
BEIS,UKAEA,11/11/2020,Hired Agency Staff - Rullion CMF/PO,Fusion,Rullion Engineering Ltd,5085450,"4,252.20"
BEIS,UKAEA,11/11/2020,Hired Agency Staff - Rullion CMF/PO,Fusion,Rullion Engineering Ltd,5085451,"5,070.27"
BEIS,UKAEA,11/11/2020,Hired Agency Staff - Rullion Technical CMF/PO,Fusion,Rullion Engineering Ltd,5085452,"3,044.14"
BEIS,UKAEA,11/11/2020,Hired Agency Staff - Rullion Technical CMF/PO,Fusion,Rullion Engineering Ltd,5085453,"1,416.00"
BEIS,UKAEA,11/11/2020,Engineering Goods,Fusion,MKS Instrument UK Limited,5085455,"8,643.65"
BEIS,UKAEA,11/11/2020,Construction,Other,Midas Construction Limited,5085456,"380,202.00"
BEIS,UKAEA,11/11/2020,Hired Agency Staff - Rullion CMF/PO,Fusion,Rullion Engineering Ltd,5085458,"1,639.80"
BEIS,UKAEA,11/11/2020,Hired Agency Staff - Rullion CMF/PO,Fusion,Rullion Engineering Ltd,5085459,867.93
BEIS,UKAEA,11/11/2020,Hired Agency Staff - Rullion CMF/PO,Support Services,Rullion Engineering Ltd,5085461,"10,436.54"
BEIS,UKAEA,11/11/2020,Hired Agency Staff - Rullion CMF/PO,Support Services,Rullion Engineering Ltd,5085462,"12,688.20"
BEIS,UKAEA,11/11/2020,Professional Services,Support Services,Sundry Supplier,5085467,"89,525.00"
BEIS,UKAEA,13/11/2020,Engineering Goods,Fusion,Thales AVS France SAS,5085469,"219,422.19"
BEIS,UKAEA,11/11/2020,Hired Agency Staff - Rullion CMF/PO,Fusion,Rullion Engineering Ltd,5085472,"2,579.51"
BEIS,UKAEA,11/11/2020,Hired Agency Staff - Rullion CMF/PO,Fusion,Rullion Engineering Ltd,5085473,"4,705.11"
BEIS,UKAEA,12/11/2020,ICT,Fusion,Clarivate Analytics (UK) Limited,5085475,"18,004.70"
BEIS,UKAEA,11/11/2020,Learning and Development,Support Services,GP Strategies Ltd.,5085479,"1,296.00"
BEIS,UKAEA,11/11/2020,Learning and Development,Support Services,GP Strategies Ltd.,5085480,"1,296.00"
BEIS,UKAEA,11/11/2020,Construction,Fusion,Midas Construction Limited,5085482,"333,261.00"
BEIS,UKAEA,11/11/2020,Engineering Goods,Fusion,Burckhardt Compression UK Ltd,5085485,"4,938.78"
BEIS,UKAEA,11/11/2020,Hired Agency Staff - Rullion CMF/PO,Property,Rullion Engineering Ltd,5085486,"2,370.94"
BEIS,UKAEA,11/11/2020,Professional Services,Fusion,McBains Ltd,5085487,"15,000.00"
BEIS,UKAEA,11/11/2020,Professional Services,Fusion,McBains Ltd,5085488,"46,386.00"
BEIS,UKAEA,11/11/2020,Professional Services,Fusion,McBains Ltd,5085489,"20,750.00"
BEIS,UKAEA,11/11/2020,Professional Services,Fusion,Jacobs Field Services Ltd,5085491,"30,118.36"
BEIS,UKAEA,11/11/2020,Professional Services,Fusion,Solid Structures UK Ltd,5085492,850.00
BEIS,UKAEA,11/11/2020,Energy and Fuels,Property,EDF Energy,5085496,"1,275.95"
BEIS,UKAEA,11/11/2020,Engineering Goods,Fusion,RS Components Ltd,5085498,748.82
BEIS,UKAEA,11/11/2020,Hired Agency Staff - Rullion CMF/PO,Fusion,Rullion Engineering Ltd,5085499,"2,767.35"
BEIS,UKAEA,16/11/2020,Engineering Goods,Fusion,Raddec International Ltd,5085507,"1,498.50"
BEIS,UKAEA,16/11/2020,Professional Services,Fusion,Raddec International Ltd,5085510,"3,720.00"
BEIS,UKAEA,16/11/2020,Energy and Fuels,Property,EDF Energy,5085514,"3,289.83"
BEIS,UKAEA,16/11/2020,Energy and Fuels,Property,EDF Energy,5085518,"3,201.26"
BEIS,UKAEA,16/11/2020,Energy and Fuels,Property,EDF Energy,5085520,"5,050.58"
BEIS,UKAEA,16/11/2020,Facilities,Other,Securitas Security Services,5085522,"1,894.20"
BEIS,UKAEA,16/11/2020,Facilities,Fusion,Securitas Security Services,5085522,"1,894.20"
BEIS,UKAEA,16/11/2020,Engineering Goods,Fusion,Quantum Design UK and Ireland Ltd,5085524,"74,605.70"
BEIS,UKAEA,13/11/2020,Office Solutions,Fusion,IOP Publishing Ltd - EUR,5085525,"1,562.50"
BEIS,UKAEA,13/11/2020,Office Solutions,Fusion,IOP Publishing Ltd - EUR,5085526,"1,041.67"
BEIS,UKAEA,16/11/2020,Professional Services,Fusion,Frazer Nash Consultancy,5085527,"23,250.00"
BEIS,UKAEA,16/11/2020,Personnel Related,Fusion,Webrecruit,5085528,"1,405.00"
BEIS,UKAEA,16/11/2020,Facilities,Support Services,BWT UK Limited,5085534,"1,354.70"
BEIS,UKAEA,18/11/2020,Hired Agency Staff - Rullion CMF/PO,Fusion,Rullion Engineering Ltd,5085560,"1,367.10"
BEIS,UKAEA,16/11/2020,Energy and Fuels,Property,EDF Energy,5085563,"40,250.53"
BEIS,UKAEA,16/11/2020,Energy and Fuels,Property,EDF Energy,5085567,"3,575.71"
BEIS,UKAEA,16/11/2020,Energy and Fuels,Property,EDF Energy,5085568,"37,392.82"
BEIS,UKAEA,16/11/2020,Energy and Fuels,Property,EDF Energy,5085569,"39,763.19"
BEIS,UKAEA,16/11/2020,Facilities,Fusion,First Response Group Ltd,5085575,"9,072.00"
BEIS,UKAEA,16/11/2020,Energy and Fuels,Property,EDF Energy,5085576,"2,391.41"
BEIS,UKAEA,16/11/2020,Engineering Goods,Fusion,MKS Instrument UK Limited,5085577,745.20
BEIS,UKAEA,13/11/2020,Communications,Fusion,Elsevier Science BV - EUR,5085578,"1,540.94"
BEIS,UKAEA,16/11/2020,Engineering Goods,Fusion,Condec Industrial Maintenance,5085579,690.00
BEIS,UKAEA,18/11/2020,Construction,Fusion,A R Smith Builders Ltd,5085580,"20,318.13"
BEIS,UKAEA,16/11/2020,ICT,Fusion,International Technegroup Limited,5085581,"18,480.00"
BEIS,UKAEA,16/11/2020,Engineering Goods,Fusion,Complete PCB Services Ltd,5085585,"6,077.00"
BEIS,UKAEA,16/11/2020,Engineering Goods,Fusion,Trinity Fire & Security Systems Ltd,5085587,"2,951.63"
BEIS,UKAEA,12/11/2020,Engineering Goods,Other,IDOM,5085588,"13,176.47"
BEIS,UKAEA,12/11/2020,Engineering Goods,Other,IDOM,5085589,"44,292.65"
BEIS,UKAEA,16/11/2020,Engineering Goods,Fusion,RS Components Ltd,5085591,"4,237.00"
BEIS,UKAEA,16/11/2020,Engineering Goods,Fusion,Concurrent Design Group,5085592,650.00
BEIS,UKAEA,16/11/2020,Engineering Goods,Fusion,RS Components Ltd,5085593,"2,309.79"
BEIS,UKAEA,18/11/2020,Engineering Goods,Fusion,BOC Ltd,5085595,"5,425.00"
BEIS,UKAEA,16/11/2020,Engineering Goods,Fusion,The University Of Sheffield,5085603,"9,500.00"
BEIS,UKAEA,16/11/2020,Professional Services,Property,Ground Investigatiion Services,5085604,800.00
BEIS,UKAEA,16/11/2020,Engineering Goods,Fusion,SST Technology Ltd,5085605,"2,900.00"
BEIS,UKAEA,16/11/2020,Engineering Goods,Fusion,SST Technology Ltd,5085605,"4,076.00"
BEIS,UKAEA,16/11/2020,Engineering Goods,Fusion,SST Technology Ltd,5085605,"5,760.00"
BEIS,UKAEA,16/11/2020,ICT,Fusion,Seavus Products Ltd.,5085606,522.00
BEIS,UKAEA,18/11/2020,Hired Agency Staff - Rullion Technical CMF/PO,Fusion,Rullion Engineering Ltd,5085608,"1,756.26"
BEIS,UKAEA,16/11/2020,Engineering Goods,Fusion,Haywood Roto Moulding Limited,5085611,"1,185.60"
BEIS,UKAEA,16/11/2020,ICT,Support Services,Cisco Systems Finance International,5085613,"1,189.04"
BEIS,UKAEA,16/11/2020,ICT,Support Services,O2 UK Ltd,5085616,"5,325.62"
BEIS,UKAEA,16/11/2020,ICT,Support Services,O2 UK Ltd,5085620,"4,123.07"
BEIS,UKAEA,16/11/2020,Engineering Goods,Other,Johnson Valves,5085622,965.50
BEIS,UKAEA,16/11/2020,Professional Services,Fusion,JEH-Lasers Ltd,5085623,"1,661.20"
BEIS,UKAEA,16/11/2020,Facilities,Property,South Oxfordshire District Council,5085629,"116,675.00"
BEIS,UKAEA,16/11/2020,Facilities,Property,South Oxfordshire District Council,5085630,"68,608.00"
BEIS,UKAEA,16/11/2020,Professional Services,Property,JLL Limited,5085631,"8,652.00"
BEIS,UKAEA,18/11/2020,Hired Agency Staff - Rullion CMF/PO,Other,Rullion Engineering Ltd,5085632,"10,040.08"
BEIS,UKAEA,16/11/2020,Engineering Goods,Fusion,Pulse Power and Measurement Ltd,5085633,"9,932.28"
BEIS,UKAEA,16/11/2020,Engineering Goods,Fusion,Edm Precision Technologies Ltd,5085639,"2,908.00"
BEIS,UKAEA,16/11/2020,Engineering Goods,Other,Edm Precision Technologies Ltd,5085640,"3,092.00"
BEIS,UKAEA,16/11/2020,Engineering Goods,Other,Machining Techology (Mach-Tech) Ltd,5085642,"3,232.09"
BEIS,UKAEA,16/11/2020,Learning and Development,Support Services,GP Strategies Ltd.,5085643,"1,620.00"
BEIS,UKAEA,16/11/2020,Learning and Development,Support Services,GP Strategies Ltd.,5085644,648.00
BEIS,UKAEA,18/11/2020,Engineering Goods,Fusion,Nuvia Limited,5085647,815.00
BEIS,UKAEA,16/11/2020,Professional Services,Support Services,Board Intelligence Ltd,5085648,"4,210.00"
BEIS,UKAEA,16/11/2020,Facilities,Property,Hallmark Event Hire Ltd.,5085649,"2,240.00"
BEIS,UKAEA,16/11/2020,Facilities,Property,Hallmark Event Hire Ltd.,5085650,"1,120.00"
BEIS,UKAEA,16/11/2020,Facilities,Property,Hallmark Event Hire Ltd.,5085650,"1,120.00"
BEIS,UKAEA,16/11/2020,Professional Services,Support Services,Keoghs,5085653,520.00
BEIS,UKAEA,16/11/2020,Professional Services,Fusion,DBD Limited,5085654,"27,189.54"
BEIS,UKAEA,16/11/2020,Professional Services,Fusion,DBD Limited,5085655,"41,839.58"
BEIS,UKAEA,16/11/2020,Professional Services,Property,McBains Ltd,5085657,"17,754.00"
BEIS,UKAEA,16/11/2020,Professional Services,Fusion,WYG Management Systems Ltd,5085658,"8,052.47"
BEIS,UKAEA,16/11/2020,Learning and Development,Fusion,EA Technology Ltd,5085662,795.00
BEIS,UKAEA,18/11/2020,Professional Services,Fusion,Nuvia Limited,5085665,"20,000.00"
BEIS,UKAEA,16/11/2020,Professional Services,Fusion,Haseltine Lake Kempner LLP,5085666,"2,250.00"
BEIS,UKAEA,18/11/2020,Professional Services,Fusion,Sundry Supplier,5085667,"1,547.00"
BEIS,UKAEA,16/11/2020,Professional Services,Fusion,Appleyard Lees IP LLP,5085668,"2,200.00"
BEIS,UKAEA,16/11/2020,Professional Services,Fusion,JA Kemp,5085669,"6,500.00"
BEIS,UKAEA,18/11/2020,Hired Agency Staff - Rullion CMF/PO,Fusion,Rullion Engineering Ltd,5085671,"5,166.00"
BEIS,UKAEA,16/11/2020,Research,Fusion,Oxford University - GBP,5085672,"2,015.54"
BEIS,UKAEA,16/11/2020,Research,Fusion,Oxford University - GBP,5085673,"2,171.88"
BEIS,UKAEA,18/11/2020,Hired Agency Staff - Rullion CMF/PO,Other,Rullion Engineering Ltd,5085674,"4,736.27"
BEIS,UKAEA,16/11/2020,Learning and Development,Fusion,Explosive Learning Solutions Ltd,5085675,"6,600.00"
BEIS,UKAEA,16/11/2020,Professional Services,Fusion,Atkins Ltd,5085676,"2,666.88"
BEIS,UKAEA,16/11/2020,Engineering Goods,Fusion,Special Metals Fabrication,5085677,"1,191.60"
BEIS,UKAEA,16/11/2020,Engineering Goods,Fusion,The Valve & Actuator Company Ltd,5085678,"1,609.80"
BEIS,UKAEA,16/11/2020,Engineering Goods,Fusion,British Salt,5085679,"2,988.45"
BEIS,UKAEA,16/11/2020,Facilities,Fusion,Condec Industrial Maintenance,5085683,"3,800.00"
BEIS,UKAEA,16/11/2020,Engineering Goods,Fusion,Condec Industrial Maintenance,5085687,"1,590.00"
BEIS,UKAEA,18/11/2020,Hired Agency Staff - Rullion CMF/PO,Support Services,Rullion Engineering Ltd,5085693,"6,985.44"
BEIS,UKAEA,18/11/2020,Hired Agency Staff - Rullion CMF/PO,Support Services,Rullion Engineering Ltd,5085694,"3,916.08"
BEIS,UKAEA,18/11/2020,Hired Agency Staff - Rullion CMF/PO,Support Services,Rullion Engineering Ltd,5085695,"9,128.70"
BEIS,UKAEA,18/11/2020,Hired Agency Staff - Rullion CMF/PO,Support Services,Rullion Engineering Ltd,5085696,"6,879.60"
BEIS,UKAEA,18/11/2020,Hired Agency Staff - Rullion CMF/PO,Support Services,Rullion Engineering Ltd,5085697,"5,450.76"
BEIS,UKAEA,16/11/2020,Learning and Development,Support Services,GP Strategies Ltd.,5085700,"1,944.00"
BEIS,UKAEA,16/11/2020,Facilities,Fusion,Condec Industrial Maintenance,5085704,"4,200.00"
BEIS,UKAEA,16/11/2020,Facilities,Fusion,Condec Industrial Maintenance,5085707,"4,100.00"
BEIS,UKAEA,16/11/2020,Professional Services,Fusion,Norton Straw Consultants Ltd,5085709,"13,500.00"
BEIS,UKAEA,16/11/2020,Professional Services,Fusion,Norton Straw Consultants Ltd,5085710,"13,800.00"
BEIS,UKAEA,18/11/2020,Hired Agency Staff - Rullion CMF/PO,Other,Rullion Engineering Ltd,5085714,"1,826.54"
BEIS,UKAEA,18/11/2020,Hired Agency Staff - Rullion CMF/PO,Other,Rullion Engineering Ltd,5085715,971.46
BEIS,UKAEA,18/11/2020,Hired Agency Staff - Rullion CMF/PO,Other,Rullion Engineering Ltd,5085716,809.40
BEIS,UKAEA,16/11/2020,ICT,Support Services,British Telecommunications plc - VOIP Services,5085717,"1,116.80"
BEIS,UKAEA,16/11/2020,ICT,Support Services,British Telecommunications plc - VOIP Services,5085719,"1,019.50"
BEIS,UKAEA,16/11/2020,Office Solutions,Support Services,The British Library,5085722,950.00
BEIS,UKAEA,16/11/2020,Engineering Goods,Fusion,Swagelok London,5085723,"11,960.00"
BEIS,UKAEA,16/11/2020,ICT,Support Services,British Telecommunications PLC - Global Services,5085724,"8,119.75"
BEIS,UKAEA,16/11/2020,ICT,Support Services,British Telecommunications PLC - Global Services,5085726,"8,119.75"
BEIS,UKAEA,16/11/2020,Engineering Goods,Fusion,Edmundson Electricals Ltd,5085734,550.00
BEIS,UKAEA,16/11/2020,Energy and Fuels,Property,EDF Energy,5085737,"2,184.24"
BEIS,UKAEA,16/11/2020,Engineering Goods,Fusion,Pycko Scientific Limited,5085738,"1,650.00"
BEIS,UKAEA,18/11/2020,Engineering Goods,Fusion,BOC Ltd,5085743,"1,072.95"
BEIS,UKAEA,18/11/2020,Engineering Goods,Fusion,BOC Ltd,5085746,"1,531.08"
BEIS,UKAEA,16/11/2020,Professional Services,Fusion,Atkins Ltd,5085752,"9,938.77"
BEIS,UKAEA,18/11/2020,Hired Agency Staff - Rullion CMF/PO,Fusion,Rullion Engineering Ltd,5085756,"2,882.79"
BEIS,UKAEA,16/11/2020,Engineering Goods,Fusion,Feedwater Ltd,5085761,633.00
BEIS,UKAEA,16/11/2020,Professional Services,Support Services,Equiniti,5085765,"48,342.75"
BEIS,UKAEA,16/11/2020,Professional Services,Support Services,Equiniti,5085766,"89,393.99"
BEIS,UKAEA,18/11/2020,Hired Agency Staff - Rullion CMF/PO,Support Services,Rullion Engineering Ltd,5085767,"-3,060.75"
BEIS,UKAEA,18/11/2020,Hired Agency Staff - Rullion CMF/PO,Support Services,Rullion Engineering Ltd,5085768,"-2,281.13"
BEIS,UKAEA,18/11/2020,Hired Agency Staff - Rullion CMF/PO,Support Services,Rullion Engineering Ltd,5085769,"-2,281.13"
BEIS,UKAEA,18/11/2020,Hired Agency Staff - Rullion CMF/PO,Support Services,Rullion Engineering Ltd,5085770,"2,356.97"
BEIS,UKAEA,18/11/2020,Hired Agency Staff - Rullion CMF/PO,Support Services,Rullion Engineering Ltd,5085771,"2,356.97"
BEIS,UKAEA,18/11/2020,Hired Agency Staff - Rullion CMF/PO,Support Services,Rullion Engineering Ltd,5085773,"3,162.51"
BEIS,UKAEA,16/11/2020,ICT,Support Services,Informa Markets (UK) Ltd,5085777,"4,930.66"
BEIS,UKAEA,18/11/2020,Facilities,Property,Mears Estates,5085788,"11,033.25"
BEIS,UKAEA,18/11/2020,Energy and Fuels,Property,EDF Energy,5085789,829.67
BEIS,UKAEA,18/11/2020,Energy and Fuels,Property,EDF Energy,5085791,884.16
BEIS,UKAEA,18/11/2020,Engineering Goods,Fusion,MKS Instrument UK Limited,5085792,"2,166.90"
BEIS,UKAEA,18/11/2020,Professional Services,Fusion,TWI Ltd,5085796,"16,530.00"
BEIS,UKAEA,18/11/2020,Professional Services,Fusion,TWI Ltd,5085797,"11,020.00"
BEIS,UKAEA,18/11/2020,Facilities,Property,Baxter Storey Ltd.,5085799,675.42
BEIS,UKAEA,18/11/2020,Facilities,Property,Baxter Storey Ltd.,5085800,"2,034.63"
BEIS,UKAEA,18/11/2020,Facilities,Property,Baxter Storey Ltd.,5085801,"12,176.11"
BEIS,UKAEA,18/11/2020,Facilities,Property,Baxter Storey Ltd.,5085802,862.26
BEIS,UKAEA,18/11/2020,Engineering Goods,Fusion,PEARWALK ENGINEERING LIMITED,5085815,"1,200.00"
BEIS,UKAEA,18/11/2020,Engineering Goods,Support Services,Boxer Machine Tools Services,5085818,"1,560.00"
BEIS,UKAEA,18/11/2020,Engineering Goods,Fusion,TVH,5085820,"2,709.08"
BEIS,UKAEA,18/11/2020,Professional Services,Fusion,Pink Elephant EMEA Ltd,5085825,"3,725.00"
BEIS,UKAEA,19/11/2020,Professional Services,Other,KLT Konsult AB,5085826,"16,368.40"
BEIS,UKAEA,19/11/2020,Professional Services,Other,KLT Konsult AB,5085826,"147,600.23"
BEIS,UKAEA,18/11/2020,Engineering Goods,Other,TSP Engineering Limited,5085827,"57,603.40"
BEIS,UKAEA,18/11/2020,Engineering Goods,Fusion,Seton,5085829,"1,002.24"
BEIS,UKAEA,18/11/2020,Facilities,Other,Oxford Innovation Ltd.,5085830,"2,375.70"
BEIS,UKAEA,18/11/2020,Professional Services,Fusion,European Instruments,5085832,"1,400.00"
BEIS,UKAEA,18/11/2020,Logistics and Shipping,Other,Custom Consoles Ltd,5085833,"1,011.20"
BEIS,UKAEA,18/11/2020,Engineering Goods,Other,Custom Consoles Ltd,5085833,"15,065.24"
BEIS,UKAEA,18/11/2020,Logistics and Shipping,Other,Custom Consoles Ltd,5085835,"1,173.80"
BEIS,UKAEA,18/11/2020,Operational Goods,Fusion,Fluid Branding Ltd.,5085838,950.00
BEIS,UKAEA,18/11/2020,Engineering Goods,Fusion,Crane Care Ltd,5085840,"2,100.00"
BEIS,UKAEA,18/11/2020,Engineering Goods,Fusion,Edm Precision Technologies Ltd,5085846,"3,728.00"
BEIS,UKAEA,18/11/2020,Hired Agency Staff - Rullion Technical CMF/PO,Fusion,Rullion Engineering Ltd,5085848,"5,104.82"
BEIS,UKAEA,18/11/2020,Hired Agency Staff - Rullion Technical CMF/PO,Fusion,Rullion Engineering Ltd,5085849,"2,555.75"
BEIS,UKAEA,18/11/2020,Hired Agency Staff - Rullion Technical CMF/PO,Fusion,Rullion Engineering Ltd,5085850,"2,119.59"
BEIS,UKAEA,18/11/2020,Hired Agency Staff - Rullion Technical CMF/PO,Fusion,Rullion Engineering Ltd,5085851,"3,904.52"
BEIS,UKAEA,18/11/2020,Hired Agency Staff - Rullion Technical CMF/PO,Fusion,Rullion Engineering Ltd,5085852,"4,358.14"
BEIS,UKAEA,18/11/2020,Engineering Goods,Support Services,Boxer Machine Tools Services,5085858,"1,885.00"
BEIS,UKAEA,18/11/2020,Professional Services,Fusion,Pycko Scientific Limited,5085866,"2,550.00"
BEIS,UKAEA,18/11/2020,Engineering Goods,Fusion,Speedy Asset Services T/A Lloyds British,5085869,573.44
BEIS,UKAEA,18/11/2020,Learning and Development,Property,GP Strategies Ltd.,5085873,534.60
BEIS,UKAEA,18/11/2020,Energy and Fuels,Property,Total Gas & Power Ltd,5085874,"23,106.94"
BEIS,UKAEA,18/11/2020,Hired Agency Staff - Rullion CMF/PO,Fusion,Rullion Engineering Ltd,5085875,"8,692.73"
BEIS,UKAEA,18/11/2020,Hired Agency Staff - Rullion Technical CMF/PO,Fusion,Rullion Engineering Ltd,5085876,"3,321.22"
BEIS,UKAEA,18/11/2020,Hired Agency Staff - Rullion CMF/PO,Fusion,Rullion Engineering Ltd,5085877,"9,063.47"
BEIS,UKAEA,18/11/2020,Construction,Fusion,Sundry Supplier,5085881,"2,792.00"
BEIS,UKAEA,23/11/2020,Engineering Goods,Other,Upward Powered Access Ltd,5085884,"1,440.00"
BEIS,UKAEA,23/11/2020,Engineering Goods,Fusion,Screwfix Direct Ltd,5085886,598.28
BEIS,UKAEA,23/11/2020,Waste Management,Fusion,Chemtech Waste Management,5085889,"1,050.00"
BEIS,UKAEA,20/11/2020,Office Solutions,Fusion,IOP Publishing Ltd - EUR,5085894,"1,458.33"
BEIS,UKAEA,20/11/2020,Office Solutions,Fusion,IOP Publishing Ltd - EUR,5085895,"1,041.67"
BEIS,UKAEA,20/11/2020,Office Solutions,Fusion,IOP Publishing Ltd - EUR,5085896,"2,500.00"
BEIS,UKAEA,20/11/2020,Office Solutions,Fusion,IOP Publishing Ltd - EUR,5085897,"1,250.00"
BEIS,UKAEA,20/11/2020,Office Solutions,Fusion,IOP Publishing Ltd - EUR,5085899,729.17
BEIS,UKAEA,25/11/2020,Hired Agency Staff - Rullion Technical CMF/PO,Fusion,Rullion Engineering Ltd,5085900,"4,130.88"
BEIS,UKAEA,25/11/2020,Hired Agency Staff - Rullion Technical CMF/PO,Fusion,Rullion Engineering Ltd,5085901,"4,637.73"
BEIS,UKAEA,25/11/2020,Hired Agency Staff - Rullion Technical CMF/PO,Fusion,Rullion Engineering Ltd,5085902,"4,740.59"
BEIS,UKAEA,25/11/2020,Hired Agency Staff - Rullion Technical CMF/PO,Fusion,Rullion Engineering Ltd,5085903,"3,579.16"
BEIS,UKAEA,25/11/2020,Hired Agency Staff - Rullion Technical CMF/PO,Fusion,Rullion Engineering Ltd,5085905,"3,150.74"
BEIS,UKAEA,25/11/2020,Hired Agency Staff - Rullion Technical CMF/PO,Fusion,Rullion Engineering Ltd,5085906,"3,253.52"
BEIS,UKAEA,25/11/2020,Hired Agency Staff - Rullion Technical CMF/PO,Fusion,Rullion Engineering Ltd,5085907,"2,490.77"
BEIS,UKAEA,25/11/2020,Hired Agency Staff - Rullion Technical CMF/PO,Fusion,Rullion Engineering Ltd,5085908,"1,687.20"
BEIS,UKAEA,20/11/2020,Engineering Goods,Fusion,Entimel Kft,5085909,"3,923.67"
BEIS,UKAEA,23/11/2020,Facilities,Support Services,SouthernsBroadstock Limited,5085910,"9,273.70"
BEIS,UKAEA,23/11/2020,Facilities,Fusion,Konecrances Demag (UK) Ltd,5085911,"96,579.00"
BEIS,UKAEA,25/11/2020,Engineering Goods,Fusion,BOC Ltd,5085913,"2,972.35"
BEIS,UKAEA,23/11/2020,Professional Services,Fusion,Dahu Limited,5085914,"52,333.44"
BEIS,UKAEA,23/11/2020,Engineering Goods,Fusion,Seaward Electronic Ltd,5085915,660.00
BEIS,UKAEA,23/11/2020,ICT,Fusion,Mirror Consulting Ltd,5085916,"2,199.00"
BEIS,UKAEA,23/11/2020,ICT,Support Services,Mirror Consulting Ltd,5085917,"1,235.00"
BEIS,UKAEA,23/11/2020,ICT,Fusion,Dell Corporation Ltd,5085920,"2,891.66"
BEIS,UKAEA,23/11/2020,ICT,Fusion,Dell Corporation Ltd,5085921,"7,840.35"
BEIS,UKAEA,23/11/2020,ICT,Fusion,Insight Direct UK Ltd,5085922,711.90
BEIS,UKAEA,23/11/2020,ICT,Fusion,Dell Corporation Ltd,5085923,"1,635.00"
BEIS,UKAEA,23/11/2020,ICT,Fusion,Millgate Limited,5085924,552.56
BEIS,UKAEA,23/11/2020,ICT,Fusion,Mirror Consulting Ltd,5085925,"4,063.00"
BEIS,UKAEA,23/11/2020,ICT,Fusion,Mirror Consulting Ltd,5085926,514.00
BEIS,UKAEA,23/11/2020,ICT,Fusion,Mirror Consulting Ltd,5085926,"1,660.00"
BEIS,UKAEA,23/11/2020,ICT,Fusion,Millgate Limited,5085928,"1,596.00"
BEIS,UKAEA,23/11/2020,ICT,Other,Dell Corporation Ltd,5085929,756.00
BEIS,UKAEA,23/11/2020,ICT,Fusion,Dell Corporation Ltd,5085929,"1,145.22"
BEIS,UKAEA,23/11/2020,ICT,Fusion,Millgate Limited,5085930,"1,288.66"
BEIS,UKAEA,23/11/2020,Professional Services,Other,McBains Ltd,5085931,"2,203.00"
BEIS,UKAEA,23/11/2020,Learning and Development,Fusion,Bradley Environmental Consultants Ltd,5085934,"1,656.24"
BEIS,UKAEA,23/11/2020,Travel,Support Services,Leasedrive Rental Management Ltd,5085936,540.30
BEIS,UKAEA,23/11/2020,Professional Services,Support Services,Ridge And Partners Llp,5085937,"11,719.90"
BEIS,UKAEA,23/11/2020,Engineering Goods,Other,Walker Lincoln Ltd,5085938,"10,450.00"
BEIS,UKAEA,23/11/2020,Engineering Goods,Fusion,Baldwins Crane Hire Limited,5085939,"28,199.00"
BEIS,UKAEA,23/11/2020,Professional Services,Support Services,Government Actuary's Department,5085940,"3,159.50"
BEIS,UKAEA,23/11/2020,Professional Services,Fusion,British Engineering Services Ltd,5085946,"1,633.50"
BEIS,UKAEA,27/11/2020,Professional Services,Fusion,Optimal Optik,5085949,"8,659.57"
BEIS,UKAEA,23/11/2020,Engineering Goods,Other,Upward Powered Access Ltd,5085950,648.00
BEIS,UKAEA,23/11/2020,Research,Fusion,Manufacturing Technology Centre,5085952,"10,990.00"
BEIS,UKAEA,23/11/2020,Construction,Fusion,Sundry Supplier,5085953,"5,274.00"
BEIS,UKAEA,23/11/2020,ICT,Support Services,Unit 4 Business Software,5085957,"13,000.00"
BEIS,UKAEA,25/11/2020,Professional Services,Fusion,Cavendish Nuclear Limited,5085960,"50,166.82"
BEIS,UKAEA,23/11/2020,Professional Services,Other,McBains Ltd,5085961,"2,203.00"
BEIS,UKAEA,23/11/2020,Professional Services,Fusion,McBains Ltd,5085962,"3,300.00"
BEIS,UKAEA,23/11/2020,Professional Services,Other,McBains Ltd,5085963,"1,066.80"
BEIS,UKAEA,23/11/2020,Professional Services,Fusion,McBains Ltd,5085964,"2,211.00"
BEIS,UKAEA,23/11/2020,Professional Services,Other,McBains Ltd,5085965,"1,105.00"
BEIS,UKAEA,25/11/2020,Construction,Fusion,Kier Graham Defence Ltd,5085966,"794,857.20"
BEIS,UKAEA,23/11/2020,Professional Services,Fusion,Engineering Analyis Services Ltd,5085979,"9,712.47"
BEIS,UKAEA,23/11/2020,Research,Fusion,University of Oxford,5085980,625.00
BEIS,UKAEA,23/11/2020,Research,Fusion,University College London,5085981,"6,000.00"
BEIS,UKAEA,23/11/2020,Research,Fusion,University College London,5085981,"8,000.00"
BEIS,UKAEA,23/11/2020,ICT,Fusion,Hexagon Metrology,5085987,"6,800.00"
BEIS,UKAEA,23/11/2020,ICT,Support Services,Unit 4 Business Software,5085988,"68,000.00"
BEIS,UKAEA,23/11/2020,Engineering Goods,Fusion,International Plastic Systems  Limited,5085990,"2,402.51"
BEIS,UKAEA,23/11/2020,Professional Services,Fusion,Field Consulting Ltd,5085991,"8,500.00"
BEIS,UKAEA,23/11/2020,Engineering Goods,Property,Beacon Group International Ltd,5085992,"1,073.12"
BEIS,UKAEA,23/11/2020,Office Solutions,Fusion,The Royal Society,5085993,"1,700.00"
BEIS,UKAEA,27/11/2020,Office Solutions,Fusion,IOP Publishing Ltd - EUR,5085994,"1,354.17"
BEIS,UKAEA,23/11/2020,Professional Services,Support Services,Government Actuary's Department,5085999,"15,455.78"
BEIS,UKAEA,23/11/2020,Professional Services,Fusion,Rolls Royce Plc,5086001,515.13
BEIS,UKAEA,23/11/2020,Other External Costs,Support Services,Paymaster (1836) Ltd RE:UKAEA Recharges,5086003,"8,888.63"
BEIS,UKAEA,23/11/2020,Research,Fusion,University of Oxford,5086005,"2,207.42"
BEIS,UKAEA,27/11/2020,Professional Services,Other,KLT Konsult AB,5086006,"-148,896.52"
BEIS,UKAEA,27/11/2020,Professional Services,Other,KLT Konsult AB,5086006,"-16,512.15"
BEIS,UKAEA,27/11/2020,Learning and Development,Support Services,Zabbix,5086014,"1,771.60"
BEIS,UKAEA,23/11/2020,ICT,Fusion,Advatek UK Ltd,5086017,"9,257.94"
BEIS,UKAEA,23/11/2020,Engineering Goods,Fusion,Elliot Scientific Ltd,5086032,"4,810.00"
BEIS,UKAEA,23/11/2020,Professional Services,Fusion,Queens University Belfast,5086033,"49,728.84"
BEIS,UKAEA,23/11/2020,Engineering Goods,Fusion,Fileder Filter Systems Ltd,5086034,621.23
BEIS,UKAEA,23/11/2020,Facilities,Property,Hallmark Event Hire Ltd.,5086036,"1,540.00"
BEIS,UKAEA,13/11/2020,Personnel Related,Support Services,AXA PPP Healthcare,5086037,"-2,471.75"
BEIS,UKAEA,23/11/2020,Engineering Goods,Other,Beckhoff Automation Ltd,5086040,"1,114.74"
BEIS,UKAEA,23/11/2020,Engineering Goods,Other,Beckhoff Automation Ltd,5086042,"1,444.74"
BEIS,UKAEA,23/11/2020,ICT,Support Services,Trustco Plc,5086043,976.00
BEIS,UKAEA,23/11/2020,Engineering Goods,Other,Struers Limited,5086044,520.00
BEIS,UKAEA,23/11/2020,Personnel Related,Support Services,Webrecruit,5086048,"1,260.00"
BEIS,UKAEA,23/11/2020,ICT,Support Services,Ideagen Gael Ltd,5086051,"4,694.01"
BEIS,UKAEA,23/11/2020,Professional Services,Support Services,Afnor UK Ltd,5086052,"6,400.00"
BEIS,UKAEA,23/11/2020,ICT,Fusion,Hyde Park Solutions Limited,5086056,"23,306.90"
BEIS,UKAEA,23/11/2020,Research,Fusion,University of Liverpool,5086057,"5,503.43"
BEIS,UKAEA,23/11/2020,Learning and Development,Support Services,Sundry Supplier,5086063,"5,550.00"
BEIS,UKAEA,23/11/2020,Personnel Related,Support Services,Ava Energy Recruitment Agency,5086067,"1,283.75"
BEIS,UKAEA,23/11/2020,Personnel Related,Fusion,Ava Energy Recruitment Agency,5086067,"1,283.75"
BEIS,UKAEA,23/11/2020,Personnel Related,Fusion,Ava Energy Recruitment Agency,5086067,"1,283.75"
BEIS,UKAEA,23/11/2020,Personnel Related,Fusion,Ava Energy Recruitment Agency,5086067,"1,283.75"
BEIS,UKAEA,23/11/2020,Personnel Related,Other,Ava Energy Recruitment Agency,5086068,"5,322.00"
BEIS,UKAEA,23/11/2020,Engineering Goods,Fusion,Feedwater Ltd,5086069,793.00
BEIS,UKAEA,23/11/2020,Engineering Goods,Fusion,J & E Hall Ltd.,5086070,"3,599.00"
BEIS,UKAEA,23/11/2020,Engineering Goods,Fusion,J & E Hall Ltd.,5086071,"1,306.80"
BEIS,UKAEA,26/11/2020,Engineering Goods,Fusion,Nanjing Co-Energy Optical Crystal Co. Ltd,5086072,"1,232.38"
BEIS,UKAEA,23/11/2020,Engineering Goods,Other,Fortress Interlocks Ltd,5086073,573.50
BEIS,UKAEA,23/11/2020,Travel,Support Services,Mawasem Limited,5086078,668.91
BEIS,UKAEA,23/11/2020,Travel,Support Services,Mawasem Limited,5086078,"1,997.71"
BEIS,UKAEA,25/11/2020,Professional Services,Fusion,Jacobs U.K. Limited,5086079,"1,068.28"
BEIS,UKAEA,23/11/2020,Engineering Goods,Fusion,Edmundson Electricals Ltd,5086080,723.58
BEIS,UKAEA,23/11/2020,Office Solutions,Fusion,Elsevier Science BV - GBP,5086081,"62,871.52"
BEIS,UKAEA,25/11/2020,Hired Agency Staff - Rullion CMF/PO,Support Services,Rullion Engineering Ltd,5086093,"3,093.02"
BEIS,UKAEA,25/11/2020,Professional Services,Fusion,Assystem UK Limited,5086097,"7,328.00"
BEIS,UKAEA,25/11/2020,Engineering Goods,Fusion,Island Optics Ltd,5086105,860.00
BEIS,UKAEA,25/11/2020,Engineering Goods,Fusion,Island Optics Ltd,5086105,860.00
BEIS,UKAEA,27/11/2020,Office Solutions,Fusion,Elsevier Science BV - EUR,5086108,673.31
BEIS,UKAEA,27/11/2020,Office Solutions,Fusion,Elsevier Science BV - EUR,5086109,852.55
BEIS,UKAEA,25/11/2020,Engineering Goods,Fusion,Farnell Electronic Components Ltd,5086117,730.37
BEIS,UKAEA,25/11/2020,Office Solutions,Fusion,Lyreco UK Limited,5086120,648.00
BEIS,UKAEA,25/11/2020,Personnel Related,Support Services,University of Oxford,5086122,650.00
BEIS,UKAEA,25/11/2020,Professional Services,Fusion,SA Group Ltd,5086125,"11,347.50"
BEIS,UKAEA,25/11/2020,Professional Services,Support Services,Faithful+Gould,5086130,918.50
BEIS,UKAEA,25/11/2020,Professional Services,Support Services,Faithful+Gould,5086130,"77,017.12"
BEIS,UKAEA,25/11/2020,Engineering Goods,Fusion,Technetics Group UK Ltd,5086138,"1,262.80"
BEIS,UKAEA,25/11/2020,Engineering Goods,Fusion,Creative Instrumentation Ltd,5086140,"3,704.60"
BEIS,UKAEA,25/11/2020,Engineering Goods,Fusion,RS Components Ltd,5086143,"2,391.00"
BEIS,UKAEA,25/11/2020,Engineering Goods,Fusion,RS Components Ltd,5086146,"1,208.77"
BEIS,UKAEA,25/11/2020,ICT,Support Services,Advatek UK Ltd,5086147,"5,665.88"
BEIS,UKAEA,25/11/2020,Facilities,Fusion,The Harris Partnership Ltd,5086149,"1,950.00"
BEIS,UKAEA,25/11/2020,Hired Agency Staff - Rullion Technical CMF/PO,Fusion,Rullion Engineering Ltd,5086150,"3,156.00"
BEIS,UKAEA,25/11/2020,Engineering Goods,Fusion,D Furnell Plant Services Ltd,5086151,850.00
BEIS,UKAEA,25/11/2020,Engineering Goods,Fusion,Grundon Waste Management Ltd,5086153,"9,606.56"
BEIS,UKAEA,25/11/2020,Engineering Goods,Fusion,Eurotherm Ltd,5086154,"1,083.73"
BEIS,UKAEA,25/11/2020,ICT,Support Services,Aztex Solutions Ltd,5086156,553.17
BEIS,UKAEA,25/11/2020,Engineering Goods,Fusion,Watlow Ltd,5086157,969.25
BEIS,UKAEA,25/11/2020,Hired Agency Staff - Rullion CMF/PO,Other,Rullion Engineering Ltd,5086161,"4,671.00"
BEIS,UKAEA,25/11/2020,Professional Services,Fusion,Assystem UK Limited,5086169,"16,747.00"
BEIS,UKAEA,25/11/2020,Engineering Goods,Fusion,BSRIA Limited,5086172,570.00
BEIS,UKAEA,25/11/2020,ICT,Support Services,British Telecommunications PLC - Global Services,5086173,"8,119.75"
BEIS,UKAEA,25/11/2020,Engineering Goods,Other,Farnell Electronic Components Ltd,5086177,617.80
BEIS,UKAEA,25/11/2020,Engineering Goods,Fusion,Wolseley UK Limited,5086183,756.52
BEIS,UKAEA,25/11/2020,Engineering Goods,Fusion,Perkin Elmer Las UK Ltd,5086185,"15,240.00"
BEIS,UKAEA,26/11/2020,Engineering Goods,Other,IDOM,5086186,"157,939.63"
BEIS,UKAEA,25/11/2020,Fleet,Fusion,ALD Automotive Ltd. T/A Ford Lease,5086191,800.00
BEIS,UKAEA,25/11/2020,Professional Services,Property,Blake Morgan LLP,5086196,"1,485.90"
BEIS,UKAEA,27/11/2020,Engineering Goods,Fusion,Solvay Specialty Polymers Italy S.P,5086201,"45,587.16"
BEIS,UKAEA,25/11/2020,Engineering Goods,Fusion,Michell Instruments Ltd,5086202,"19,434.00"
BEIS,UKAEA,25/11/2020,Hired Agency Staff - Rullion CMF/PO,Other,Rullion Engineering Ltd,5086203,"1,426.68"
BEIS,UKAEA,25/11/2020,Learning and Development,Support Services,Sundry Supplier,5086209,"3,985.00"
BEIS,UKAEA,25/11/2020,Professional Services,Fusion,Cavendish Nuclear Limited,5086218,"98,537.28"
BEIS,UKAEA,25/11/2020,Engineering Goods,Fusion,Tacklestore Ltd,5086220,919.23
BEIS,UKAEA,27/11/2020,Office Solutions,Fusion,Taylor & Francis Group - EUR,5086225,597.50
BEIS,UKAEA,30/11/2020,Facilities,Property,Securitas Security Services,5086250,"20,643.91"
BEIS,UKAEA,26/11/2020,Engineering Goods,Fusion,Advanced Conductor Technologies LLC,5086274,"9,597.67"
BEIS,UKAEA,26/11/2020,Engineering Goods,Fusion,Alluxa,5086288,"29,663.21"
BEIS,UKAEA,27/11/2020,Construction,Other,Midas Construction Limited,5086296,"216,172.00"
BEIS,UKAEA,30/11/2020,Facilities,Property,Securitas Security Services,5086364,"3,434.53"
BEIS,UKAEA,30/11/2020,Facilities,Property,Securitas Security Services,5086364,"4,563.45"
BEIS,UKAEA,30/11/2020,Facilities,Property,Securitas Security Services,5086364,"8,101.33"
BEIS,UKAEA,30/11/2020,Facilities,Property,Securitas Security Services,5086364,"23,077.93"
BEIS,UKAEA,30/11/2020,Facilities,Property,Securitas Security Services,5086364,"63,464.33"
BEIS,UKAEA,04/11/2020,Mileage Allowance,Fusion,Employee Expenses,20009473,500.00
BEIS,UKAEA,04/11/2020,Travel,Fusion,Employee Expenses,20009473,602.40
BEIS,UKAEA,04/11/2020,Travel,Fusion,Employee Expenses,20009473,782.68
BEIS,UKAEA,04/11/2020,Travel,Fusion,Employee Expenses,20009473,"1,018.93"
BEIS,UKAEA,04/11/2020,Other Employee Expenses,Fusion,Employee Expenses,20009479,837.05
BEIS,UKAEA,04/11/2020,Relocation Costs,Fusion,Employee Expenses,20009480,562.00
BEIS,UKAEA,04/11/2020,Relocation Costs,Fusion,Employee Expenses,20009480,"1,281.00"
BEIS,UKAEA,04/11/2020,Relocation Costs,Support Services,Employee Expenses,20009488,"1,221.98"
BEIS,UKAEA,11/11/2020,Relocation Costs,Support Services,Employee Expenses,20009510,"1,500.00"
BEIS,UKAEA,11/11/2020,Relocation Costs,Other,Employee Expenses,20009514,"1,775.93"
BEIS,UKAEA,18/11/2020,Relocation Costs,Other,Employee Expenses,20009530,950.00
BEIS,UKAEA,18/11/2020,Relocation Costs,Other,Employee Expenses,20009530,"2,500.00"
BEIS,UKAEA,18/11/2020,Relocation Costs,Other,Employee Expenses,20009530,"3,791.67"
BEIS,UKAEA,25/11/2020,Mileage Allowance,Fusion,Employee Expenses,20009550,500.00
BEIS,UKAEA,25/11/2020,Travel,Fusion,Employee Expenses,20009550,551.43
BEIS,UKAEA,25/11/2020,Travel,Fusion,Employee Expenses,20009550,"1,004.87"
BEIS,UKAEA,25/11/2020,Travel,Fusion,Employee Expenses,20009555,"1,020.92"
BEIS,UKAEA,25/11/2020,Travel,Fusion,Employee Expenses,20009557,510.00
BEIS,UKAEA,25/11/2020,Mileage Allowance,Fusion,Employee Expenses,20009557,675.00
BEIS,UKAEA,25/11/2020,Travel,Fusion,Employee Expenses,20009557,"1,307.19"
BEIS,UKAEA,25/11/2020,Relocation Costs,Support Services,Employee Expenses,20009559,"1,568.56"
BEIS,UKAEA,25/11/2020,Relocation Costs,Fusion,Employee Expenses,20009560,"1,200.00"
BEIS,UKAEA,Various,Various,Various,Employee Expenses <500,Various,"14,628.42"
BEIS,UKAEA,Various,Various,Various,P-Card Supplier <500,Various,0.00
BEIS,UKAEA,Various,Various,Various,Supplier <500,Various,"107,603.50"
